{"text_format":"1","workbook":"xlsx","n_sheets":13,"sheets":["формулы","ВНИМАНИЕ","Сведения по областям","Претензии","Подразделения","добровольные виды","доброволные виды жизнь","добр перестрахование","добр жизнь перес","обязательные виды","обяз перес","инвестиции","учредители"],"not_rendered":{"charts":0,"images":2,"macros":1,"external_links":0,"defined_names":24,"comments":1,"pivot_tables":0},"unopened":[],"bounds":{"document_bytes":16777216,"sheet_cells":100000,"rows_first":2000,"rows_last":500,"rows_between":2000,"halvings":0,"cell_chars":16384,"cell_head_chars":4096},"cells_cut":0,"cells_raw":0,"read":"whole","date_system":"1900"}

{"sheet":"формулы","index":0,"n_rows":131,"n_cols":15,"rows_kept":131,"cut":false,"hidden":true,"merged":[[95,0,98,0],[95,1,95,4],[95,5,95,8],[95,9,95,12],[95,13,96,14],[96,1,96,2],[96,3,96,4],[96,5,96,6],[96,7,96,8],[96,9,96,10],[96,11,96,12],[75,0,78,0],[75,1,75,4],[75,5,75,8],[75,9,75,12],[75,13,76,14],[76,1,76,2],[76,3,76,4],[76,5,76,6],[76,7,76,8],[76,9,76,10],[76,11,76,12],[66,0,68,0],[66,1,66,4],[66,5,66,8],[67,1,67,2],[67,3,67,4],[67,5,67,6],[67,7,67,8],[57,0,59,0],[49,9,49,10],[49,11,49,12],[48,0,50,0],[57,1,57,4],[57,5,57,8],[39,13,40,14],[40,1,40,2],[40,3,40,4],[40,5,40,6],[58,1,58,2],[58,3,58,4],[58,5,58,6],[58,7,58,8],[48,13,49,14],[49,1,49,2],[49,3,49,4],[49,5,49,6],[49,7,49,8],[40,7,40,8],[40,9,40,10],[40,11,40,12],[39,0,41,0],[48,1,48,4],[48,5,48,8],[48,9,48,12],[39,1,39,4],[39,5,39,8],[39,9,39,12],[115,0,118,0],[115,1,115,4],[115,5,115,8],[115,9,115,12],[115,13,116,14],[116,1,116,2],[116,3,116,4],[116,5,116,6],[116,7,116,8],[116,9,116,10],[116,11,116,12]]}
[]
["Виды классов","Виды обязательных","Виды классов жизнь"]
[1.2,"ОСГО",1.2,null,null,null,null,"2023-03-31","по итогам I квартала 2023 года"]
["1,2,7,13","ОСГОР",1.18,null,null,null,null,"2023-06-30","по итогам II квартала 2023 года"]
["1,2,8,9","ОСГОП","1, I",null,null,null,null,"2023-09-30","по итогам III квартала 2023 года"]
[1.3,"ОСГОР аннуитет","1, I, IV",null,null,null,null,"2023-12-31","по итогам IV квартала 2023 года"]
["1,3,8,9,10","ОС СМР",null,null,null,null,null,"2024-03-31","по итогам I квартала 2024 года"]
["1,3,8,9,10,13,16","ОСПОН",null,null,null,null,null,"2024-06-30","по итогам II квартала 2024 года"]
["1,3,10","ОСПОА",null,null,null,null,null,"2024-09-30","по итогам III квартала 2024 года"]
["1,8,9","ОСПОТБ",null,null,null,null,null,"2024-12-31","по итогам IV квартала 2024 года"]
["1,8,9,13","ОСП от НС",null,null,null,null,null,"2025-03-31","по итогам I квартала 2025 года"]
[10.1,"ОГСВиН",null,null,null,null,null,"2025-06-30","по итогам II квартала 2025 года"]
[1.1299999999999999,"ОСГО ОПО",null,null,null,null,null,"2025-09-30","по итогам III квартала 2025 года"]
[1.1399999999999999,"ОГС ЖЗСЭ",null,null,null,null,null,"2025-12-31","по итогам IV квартала 2025 года"]
[1.18,"ОСЖЗСССиСФ",null,null,null,null,null,"2026-03-31","по итогам I квартала 2026 года"]
[10.3,"ОСГОТ",null,null,null,null,null,"2026-06-30","по итогам II квартала 2026 года"]
["1,3,10,16",null,null,null,null,null,null,"2026-09-30","по итогам III квартала 2026 года"]
["3,8,9","ОСГО","Обязательное страхование гражданской ответственности владельцев транспортных средств",null,null,null,null,"2026-12-31","по итогам IV квартала 2026 года"]
[3.14,"ОСГОР","Обязательное страхование гражданской ответственности работодателя",null,null,null,null,"2027-03-31","по итогам I квартала 2027 года"]
[5.1100000000000003,"ОСГОП","Обязательное страхование гражданской ответственности перевозчика",null,null,null,null,"2027-06-30","по итогам II квартала 2027 года"]
[6.12,"ОСГОР аннуитет","Обязательное страхование гражданской ответственности работодателя (договор аннуитетов)",null,null,null,null,"2027-09-30","по итогам III квартала 2027 года"]
["7,8,9","ОС СМР","Обязательное страхование строительно-монтажных работ",null,null,null,null,"2027-12-31","по итогам IV квартала 2027 года"]
["7,8,9,13","ОСПОН","Обязательное страхование профессиональной ответственности нотариусов",null,null,null,null,"2028-03-31","по итогам I квартала 2028 года"]
["7,8,9,10,13,16","ОСПОА","Обязательное страхование профессиональной ответственности аудиторов",null,null,null,null,"2028-06-30","по итогам II квартала 2028 года"]
[7.16,"ОСПОТБ","Обязательное страхование профессиональной ответственности таможенных брокеров",null,null,null,null,"2028-09-30","по итогам III квартала 2028 года"]
[8.9,"ОСП от НС","Обязательное страхование пассажиров от несчастных случаев",null,null,null,null,"2028-12-31","по итогам IV квартала 2028 года"]
["8,9,3","ОГСВиН","Обязательное страхование военных и налоговиков",null,null,null,null,"2029-03-31","по итогам I квартала 2029 года"]
["8,9,7","ОСГО ОПО","Обязательное страхование гражданской ответственности при эксплуатации опасных производственных объектове",null,null,null,null,"2029-06-30","по итогам II квартала 2029 года"]
["8,9,13","ОГС ЖЗСЭ","Обязательное государственное страхование жизни и здоровья государственных судебных экспертов",null,null,null,null,"2029-09-30","по итогам III квартала 2029 года"]
["8,9,16","ОСЖЗСССиСФ","Обязательное страхование жизни и здоровья спасателей спасательных служб и спасательных формирований",null,null,null,null,"2029-12-31","по итогам IV квартала 2029 года"]
["8,9,13,16","ОСГОТ","Обязательное страхование гражданской ответственности туроператоров",null,null,null,null,"2030-03-31","по итогам I квартала 2030 года"]
["8,9,13,16,17",null,null,null,null,null,null,"2030-06-30","по итогам II квартала 2030 года"]
["8,9,16,17",null,null,null,null,null,null,"2030-09-30","по итогам III квартала 2030 года"]
[8.1,null,null,null,null,null,null,"2030-12-31","по итогам IV квартала 2030 года"]
[8.1300000000000008,null,null,null,null,null,null,"2031-03-31","по итогам I квартала 2031 года"]
["8,13,14",null,null,null,null,null,null,"2031-06-30","по итогам II квартала 2031 года"]
[10.130000000000001,null,null,null,null,null,null,"2031-09-30","по итогам III квартала 2031 года"]
[null,null,null,null,null,null,null,"2031-12-31","по итогам IV квартала 2031 года"]
["добровольные виды"]
["КЛАССЫ","Количество договоров страхования (шт.)",null,null,null,"Объем поступившей страховой премии (тыс. сум)",null,null,null,"Объем принятых страховых обязательств (тыс. сум)",null,null,null,"Объем страховых выплат (тыс. сум)"]
[null,"действующих на отчетную дату ",null,"заключенных за отчетный период",null,"по действовавшим в отчетном периоде договорам страхования",null,"по заключенным за отчетный период договорам страхования ",null,"по действующим на отчетную дату договорам страхования  ",null,"по заключенным за отчетный период договорам страхования "]
[null,"юр. лица","физ. лица","юр. лица","физ. лица","юр. лица","физ. лица","юр. лица","физ. лица","юр. лица","физ. лица","юр. лица","физ. лица","юр. лица","физ. лица"]
["ВСЕГО",{"$f":"'добровольные виды'!$B$37","v":0},{"$f":"'добровольные виды'!$C$37","v":0},{"$f":"'добровольные виды'!$D$37","v":0},{"$f":"'добровольные виды'!$E$37","v":0},{"$f":"'добровольные виды'!$F$37","v":0},{"$f":"'добровольные виды'!$G$37","v":0},{"$f":"'добровольные виды'!$H$37","v":0},{"$f":"'добровольные виды'!$I$37","v":0},{"$f":"'добровольные виды'!$J$37","v":0},{"$f":"'добровольные виды'!$K$37","v":0},{"$f":"'добровольные виды'!$L$37","v":0},{"$f":"'добровольные виды'!$M$37","v":0},{"$f":"'добровольные виды'!$N$37","v":0},{"$f":"'добровольные виды'!$O$37","v":0}]
["ИТОГО",{"$f":"'добровольные виды'!$B$38","v":0},{"$f":"'добровольные виды'!$C$38","v":0},{"$f":"'добровольные виды'!$D$38","v":0},{"$f":"'добровольные виды'!$E$38","v":0},{"$f":"'добровольные виды'!$F$38","v":0},{"$f":"'добровольные виды'!$G$38","v":0},{"$f":"'добровольные виды'!$H$38","v":0},{"$f":"'добровольные виды'!$I$38","v":0},{"$f":"'добровольные виды'!$J$38","v":0},{"$f":"'добровольные виды'!$K$38","v":0},{"$f":"'добровольные виды'!$L$38","v":0},{"$f":"'добровольные виды'!$M$38","v":0},{"$f":"'добровольные виды'!$N$38","v":0},{"$f":"'добровольные виды'!$O$38","v":0}]
[]
[]
[]
["доброволные виды жизнь"]
["КЛАССЫ","Количество договоров страхования (шт.)",null,null,null,"Объем поступившей страховой премии (тыс. сум)",null,null,null,"Объем принятых страховых обязательств (тыс. сум)",null,null,null,"Объем страховых выплат (тыс. сум)"]
[null,"действующих на отчетную дату ",null,"заключенных за отчетный период",null,"по действовавшим в отчетном периоде договорам страхования",null,"по заключенным за отчетный период договорам страхования ",null,"по действующим на отчетную дату договорам страхования  ",null,"по заключенным за отчетный период договорам страхования "]
[null,"юр. лица","физ. лица","юр. лица","физ. лица","юр. лица","физ. лица","юр. лица","физ. лица","юр. лица","физ. лица","юр. лица","физ. лица","юр. лица","физ. лица"]
["ВСЕГО",{"$f":"'доброволные виды жизнь'!$B$32","v":0},{"$f":"'доброволные виды жизнь'!$C$32","v":0},{"$f":"'доброволные виды жизнь'!$D$32","v":0},{"$f":"'доброволные виды жизнь'!$E$32","v":0},{"$f":"'доброволные виды жизнь'!$F$32","v":0},{"$f":"'доброволные виды жизнь'!$G$32","v":0},{"$f":"'доброволные виды жизнь'!$H$32","v":0},{"$f":"'доброволные виды жизнь'!$I$32","v":0},{"$f":"'доброволные виды жизнь'!$J$32","v":0},{"$f":"'доброволные виды жизнь'!$K$32","v":0},{"$f":"'доброволные виды жизнь'!$L$32","v":0},{"$f":"'доброволные виды жизнь'!$M$32","v":0},{"$f":"'доброволные виды жизнь'!$N$32","v":0},{"$f":"'доброволные виды жизнь'!$O$32","v":0}]
["ИТОГО",{"$f":"'доброволные виды жизнь'!$B$33","v":0},{"$f":"'доброволные виды жизнь'!$C$33","v":0},{"$f":"'доброволные виды жизнь'!$D$33","v":0},{"$f":"'доброволные виды жизнь'!$E$33","v":0},{"$f":"'доброволные виды жизнь'!$F$33","v":0},{"$f":"'доброволные виды жизнь'!$G$33","v":0},{"$f":"'доброволные виды жизнь'!$H$33","v":0},{"$f":"'доброволные виды жизнь'!$I$33","v":0},{"$f":"'доброволные виды жизнь'!$J$33","v":0},{"$f":"'доброволные виды жизнь'!$K$33","v":0},{"$f":"'доброволные виды жизнь'!$L$33","v":0},{"$f":"'доброволные виды жизнь'!$M$33","v":0},{"$f":"'доброволные виды жизнь'!$N$33","v":0},{"$f":"'доброволные виды жизнь'!$O$33","v":0}]
[]
[]
[]
["добр перестрахование"]
["КЛАССЫ","Объем страховой премии ",null,null,null,"Объем страховых обязательств "]
[null,"выплачено по исходящему перестрахованию",null,"получено по входящему перестрахованию",null,"передано по исходящему перестрахованию",null,"принято по входящему перестрахованию"]
[null,"страховщикам -резидентам Р.Уз.","иностранным страховым организациям","от страховщиков - резидентов Р.Уз.","от иностранных страховых организаций","страховщикам -резидентам Р.Уз.","иностранным страховым организациям","от страховщиков - резидентов Р.Уз.","от иностранных страховых организаций"]
["ВСЕГО",{"$f":"'добр перестрахование'!$B$36","v":0},{"$f":"'добр перестрахование'!$C$36","v":0},{"$f":"'добр перестрахование'!$D$36","v":0},{"$f":"'добр перестрахование'!$E$36","v":0},{"$f":"'добр перестрахование'!$F$36","v":0},{"$f":"'добр перестрахование'!$G$36","v":0},{"$f":"'добр перестрахование'!$H$36","v":0},{"$f":"'добр перестрахование'!$I$36","v":0}]
["ИТОГО",{"$f":"'добр перестрахование'!$B$37","v":0},{"$f":"'добр перестрахование'!$C$37","v":0},{"$f":"'добр перестрахование'!$D$37","v":0},{"$f":"'добр перестрахование'!$E$37","v":0},{"$f":"'добр перестрахование'!$F$37","v":0},{"$f":"'добр перестрахование'!$G$37","v":0},{"$f":"'добр перестрахование'!$H$37","v":0},{"$f":"'добр перестрахование'!$I$37","v":0}]
[]
[]
[]
["добр жизнь перес"]
["КЛАССЫ","Объем страховой премии ",null,null,null,"Объем страховых обязательств "]
[null,"выплачено по исходящему перестрахованию",null,"получено по входящему перестрахованию",null,"передано по исходящему перестрахованию",null,"принято по входящему перестрахованию"]
[null,"страховщикам -резидентам Р.Уз.","иностранным страховым организациям","от страховщиков - резидентов Р.Уз.","от иностранных страховых организаций","страховщикам -резидентам Р.Уз.","иностранным страховым организациям","от страховщиков - резидентов Р.Уз.","от иностранных страховых организаций"]
["ВСЕГО",{"$f":"'добр жизнь перес'!$B$31","v":0},{"$f":"'добр жизнь перес'!$C$31","v":0},{"$f":"'добр жизнь перес'!$D$31","v":0},{"$f":"'добр жизнь перес'!$E$31","v":0},{"$f":"'добр жизнь перес'!$F$31","v":0},{"$f":"'добр жизнь перес'!$G$31","v":0},{"$f":"'добр жизнь перес'!$H$31","v":0},{"$f":"'добр жизнь перес'!$I$31","v":0}]
["ИТОГО",{"$f":"'добр жизнь перес'!$B$32","v":0},{"$f":"'добр жизнь перес'!$C$32","v":0},{"$f":"'добр жизнь перес'!$D$32","v":0},{"$f":"'добр жизнь перес'!$E$32","v":0},{"$f":"'добр жизнь перес'!$F$32","v":0},{"$f":"'добр жизнь перес'!$G$32","v":0},{"$f":"'добр жизнь перес'!$H$32","v":0},{"$f":"'добр жизнь перес'!$I$32","v":0}]
[]
[]
[]
["Обязательные виды ОСГО"]
["Виды обязательного страхования","Количество договоров страхования (шт.)",null,null,null,"Объем поступившей страховой премии (тыс. сум)",null,null,null,"Объем принятых страховых обязательств (тыс. сум)",null,null,null,"Объем страховых выплат (тыс. сум)"]
[null,"действующих на отчетную дату ",null,"заключенных за отчетный период",null,"по действующим на отчетную дату договорам страхования  ",null,"по заключенным за отчетный период договорам страхования ",null,"по действующим на отчетную дату договорам страхования  ",null,"по заключенным за отчетный период договорам страхования "]
[null,"юр. лица","физ. лица","юр. лица","физ. лица","юр. лица","физ. лица","юр. лица","физ. лица","юр. лица","физ. лица","юр. лица","физ. лица","юр. лица","физ. лица"]
[null,1,2,3,4,5,6,7,8,9,10,11,12,13,14]
["ОСГО",{"$f":"IF('обязательные виды'!$A12=формулы!$B$3,'обязательные виды'!B12,0)","v":0},{"$f":"IF('обязательные виды'!$A12=формулы!$B$3,'обязательные виды'!C12,0)","v":0},{"$f":"IF('обязательные виды'!$A12=формулы!$B$3,'обязательные виды'!D12,0)","v":0},{"$f":"IF('обязательные виды'!$A12=формулы!$B$3,'обязательные виды'!E12,0)","v":0},{"$f":"IF('обязательные виды'!$A12=формулы!$B$3,'обязательные виды'!F12,0)","v":0},{"$f":"IF('обязательные виды'!$A12=формулы!$B$3,'обязательные виды'!G12,0)","v":0},{"$f":"IF('обязательные виды'!$A12=формулы!$B$3,'обязательные виды'!H12,0)","v":0},{"$f":"IF('обязательные виды'!$A12=формулы!$B$3,'обязательные виды'!I12,0)","v":0},{"$f":"IF('обязательные виды'!$A12=формулы!$B$3,'обязательные виды'!J12,0)","v":0},{"$f":"IF('обязательные виды'!$A12=формулы!$B$3,'обязательные виды'!K12,0)","v":0},{"$f":"IF('обязательные виды'!$A12=формулы!$B$3,'обязательные виды'!L12,0)","v":0},{"$f":"IF('обязательные виды'!$A12=формулы!$B$3,'обязательные виды'!M12,0)","v":0},{"$f":"IF('обязательные виды'!$A12=формулы!$B$3,'обязательные виды'!N12,0)","v":0},{"$f":"IF('обязательные виды'!$A12=формулы!$B$3,'обязательные виды'!O12,0)","v":0}]
["ОСГО",{"$f":"IF('обязательные виды'!$A13=формулы!$B$3,'обязательные виды'!B13,0)","v":0},{"$f":"IF('обязательные виды'!$A13=формулы!$B$3,'обязательные виды'!C13,0)","v":0},{"$f":"IF('обязательные виды'!$A13=формулы!$B$3,'обязательные виды'!D13,0)","v":0},{"$f":"IF('обязательные виды'!$A13=формулы!$B$3,'обязательные виды'!E13,0)","v":0},{"$f":"IF('обязательные виды'!$A13=формулы!$B$3,'обязательные виды'!F13,0)","v":0},{"$f":"IF('обязательные виды'!$A13=формулы!$B$3,'обязательные виды'!G13,0)","v":0},{"$f":"IF('обязательные виды'!$A13=формулы!$B$3,'обязательные виды'!H13,0)","v":0},{"$f":"IF('обязательные виды'!$A13=формулы!$B$3,'обязательные виды'!I13,0)","v":0},{"$f":"IF('обязательные виды'!$A13=формулы!$B$3,'обязательные виды'!J13,0)","v":0},{"$f":"IF('обязательные виды'!$A13=формулы!$B$3,'обязательные виды'!K13,0)","v":0},{"$f":"IF('обязательные виды'!$A13=формулы!$B$3,'обязательные виды'!L13,0)","v":0},{"$f":"IF('обязательные виды'!$A13=формулы!$B$3,'обязательные виды'!M13,0)","v":0},{"$f":"IF('обязательные виды'!$A13=формулы!$B$3,'обязательные виды'!N13,0)","v":0},{"$f":"IF('обязательные виды'!$A13=формулы!$B$3,'обязательные виды'!O13,0)","v":0}]
["ОСГО",{"$f":"IF('обязательные виды'!$A14=формулы!$B$3,'обязательные виды'!B14,0)","v":0},{"$f":"IF('обязательные виды'!$A14=формулы!$B$3,'обязательные виды'!C14,0)","v":0},{"$f":"IF('обязательные виды'!$A14=формулы!$B$3,'обязательные виды'!D14,0)","v":0},{"$f":"IF('обязательные виды'!$A14=формулы!$B$3,'обязательные виды'!E14,0)","v":0},{"$f":"IF('обязательные виды'!$A14=формулы!$B$3,'обязательные виды'!F14,0)","v":0},{"$f":"IF('обязательные виды'!$A14=формулы!$B$3,'обязательные виды'!G14,0)","v":0},{"$f":"IF('обязательные виды'!$A14=формулы!$B$3,'обязательные виды'!H14,0)","v":0},{"$f":"IF('обязательные виды'!$A14=формулы!$B$3,'обязательные виды'!I14,0)","v":0},{"$f":"IF('обязательные виды'!$A14=формулы!$B$3,'обязательные виды'!J14,0)","v":0},{"$f":"IF('обязательные виды'!$A14=формулы!$B$3,'обязательные виды'!K14,0)","v":0},{"$f":"IF('обязательные виды'!$A14=формулы!$B$3,'обязательные виды'!L14,0)","v":0},{"$f":"IF('обязательные виды'!$A14=формулы!$B$3,'обязательные виды'!M14,0)","v":0},{"$f":"IF('обязательные виды'!$A14=формулы!$B$3,'обязательные виды'!N14,0)","v":0},{"$f":"IF('обязательные виды'!$A14=формулы!$B$3,'обязательные виды'!O14,0)","v":0}]
["ОСГО",{"$f":"IF('обязательные виды'!$A15=формулы!$B$3,'обязательные виды'!B15,0)","v":0},{"$f":"IF('обязательные виды'!$A15=формулы!$B$3,'обязательные виды'!C15,0)","v":0},{"$f":"IF('обязательные виды'!$A15=формулы!$B$3,'обязательные виды'!D15,0)","v":0},{"$f":"IF('обязательные виды'!$A15=формулы!$B$3,'обязательные виды'!E15,0)","v":0},{"$f":"IF('обязательные виды'!$A15=формулы!$B$3,'обязательные виды'!F15,0)","v":0},{"$f":"IF('обязательные виды'!$A15=формулы!$B$3,'обязательные виды'!G15,0)","v":0},{"$f":"IF('обязательные виды'!$A15=формулы!$B$3,'обязательные виды'!H15,0)","v":0},{"$f":"IF('обязательные виды'!$A15=формулы!$B$3,'обязательные виды'!I15,0)","v":0},{"$f":"IF('обязательные виды'!$A15=формулы!$B$3,'обязательные виды'!J15,0)","v":0},{"$f":"IF('обязательные виды'!$A15=формулы!$B$3,'обязательные виды'!K15,0)","v":0},{"$f":"IF('обязательные виды'!$A15=формулы!$B$3,'обязательные виды'!L15,0)","v":0},{"$f":"IF('обязательные виды'!$A15=формулы!$B$3,'обязательные виды'!M15,0)","v":0},{"$f":"IF('обязательные виды'!$A15=формулы!$B$3,'обязательные виды'!N15,0)","v":0},{"$f":"IF('обязательные виды'!$A15=формулы!$B$3,'обязательные виды'!O15,0)","v":0}]
["ОСГО",{"$f":"IF('обязательные виды'!$A16=формулы!$B$3,'обязательные виды'!B16,0)","v":0},{"$f":"IF('обязательные виды'!$A16=формулы!$B$3,'обязательные виды'!C16,0)","v":0},{"$f":"IF('обязательные виды'!$A16=формулы!$B$3,'обязательные виды'!D16,0)","v":0},{"$f":"IF('обязательные виды'!$A16=формулы!$B$3,'обязательные виды'!E16,0)","v":0},{"$f":"IF('обязательные виды'!$A16=формулы!$B$3,'обязательные виды'!F16,0)","v":0},{"$f":"IF('обязательные виды'!$A16=формулы!$B$3,'обязательные виды'!G16,0)","v":0},{"$f":"IF('обязательные виды'!$A16=формулы!$B$3,'обязательные виды'!H16,0)","v":0},{"$f":"IF('обязательные виды'!$A16=формулы!$B$3,'обязательные виды'!I16,0)","v":0},{"$f":"IF('обязательные виды'!$A16=формулы!$B$3,'обязательные виды'!J16,0)","v":0},{"$f":"IF('обязательные виды'!$A16=формулы!$B$3,'обязательные виды'!K16,0)","v":0},{"$f":"IF('обязательные виды'!$A16=формулы!$B$3,'обязательные виды'!L16,0)","v":0},{"$f":"IF('обязательные виды'!$A16=формулы!$B$3,'обязательные виды'!M16,0)","v":0},{"$f":"IF('обязательные виды'!$A16=формулы!$B$3,'обязательные виды'!N16,0)","v":0},{"$f":"IF('обязательные виды'!$A16=формулы!$B$3,'обязательные виды'!O16,0)","v":0}]
["ОСГО",{"$f":"IF('обязательные виды'!$A17=формулы!$B$3,'обязательные виды'!B17,0)","v":0},{"$f":"IF('обязательные виды'!$A17=формулы!$B$3,'обязательные виды'!C17,0)","v":0},{"$f":"IF('обязательные виды'!$A17=формулы!$B$3,'обязательные виды'!D17,0)","v":0},{"$f":"IF('обязательные виды'!$A17=формулы!$B$3,'обязательные виды'!E17,0)","v":0},{"$f":"IF('обязательные виды'!$A17=формулы!$B$3,'обязательные виды'!F17,0)","v":0},{"$f":"IF('обязательные виды'!$A17=формулы!$B$3,'обязательные виды'!G17,0)","v":0},{"$f":"IF('обязательные виды'!$A17=формулы!$B$3,'обязательные виды'!H17,0)","v":0},{"$f":"IF('обязательные виды'!$A17=формулы!$B$3,'обязательные виды'!I17,0)","v":0},{"$f":"IF('обязательные виды'!$A17=формулы!$B$3,'обязательные виды'!J17,0)","v":0},{"$f":"IF('обязательные виды'!$A17=формулы!$B$3,'обязательные виды'!K17,0)","v":0},{"$f":"IF('обязательные виды'!$A17=формулы!$B$3,'обязательные виды'!L17,0)","v":0},{"$f":"IF('обязательные виды'!$A17=формулы!$B$3,'обязательные виды'!M17,0)","v":0},{"$f":"IF('обязательные виды'!$A17=формулы!$B$3,'обязательные виды'!N17,0)","v":0},{"$f":"IF('обязательные виды'!$A17=формулы!$B$3,'обязательные виды'!O17,0)","v":0}]
["ОСГО",{"$f":"IF('обязательные виды'!$A18=формулы!$B$3,'обязательные виды'!B18,0)","v":0},{"$f":"IF('обязательные виды'!$A18=формулы!$B$3,'обязательные виды'!C18,0)","v":0},{"$f":"IF('обязательные виды'!$A18=формулы!$B$3,'обязательные виды'!D18,0)","v":0},{"$f":"IF('обязательные виды'!$A18=формулы!$B$3,'обязательные виды'!E18,0)","v":0},{"$f":"IF('обязательные виды'!$A18=формулы!$B$3,'обязательные виды'!F18,0)","v":0},{"$f":"IF('обязательные виды'!$A18=формулы!$B$3,'обязательные виды'!G18,0)","v":0},{"$f":"IF('обязательные виды'!$A18=формулы!$B$3,'обязательные виды'!H18,0)","v":0},{"$f":"IF('обязательные виды'!$A18=формулы!$B$3,'обязательные виды'!I18,0)","v":0},{"$f":"IF('обязательные виды'!$A18=формулы!$B$3,'обязательные виды'!J18,0)","v":0},{"$f":"IF('обязательные виды'!$A18=формулы!$B$3,'обязательные виды'!K18,0)","v":0},{"$f":"IF('обязательные виды'!$A18=формулы!$B$3,'обязательные виды'!L18,0)","v":0},{"$f":"IF('обязательные виды'!$A18=формулы!$B$3,'обязательные виды'!M18,0)","v":0},{"$f":"IF('обязательные виды'!$A18=формулы!$B$3,'обязательные виды'!N18,0)","v":0},{"$f":"IF('обязательные виды'!$A18=формулы!$B$3,'обязательные виды'!O18,0)","v":0}]
["ОСГО",{"$f":"IF('обязательные виды'!$A19=формулы!$B$3,'обязательные виды'!B19,0)","v":0},{"$f":"IF('обязательные виды'!$A19=формулы!$B$3,'обязательные виды'!C19,0)","v":0},{"$f":"IF('обязательные виды'!$A19=формулы!$B$3,'обязательные виды'!D19,0)","v":0},{"$f":"IF('обязательные виды'!$A19=формулы!$B$3,'обязательные виды'!E19,0)","v":0},{"$f":"IF('обязательные виды'!$A19=формулы!$B$3,'обязательные виды'!F19,0)","v":0},{"$f":"IF('обязательные виды'!$A19=формулы!$B$3,'обязательные виды'!G19,0)","v":0},{"$f":"IF('обязательные виды'!$A19=формулы!$B$3,'обязательные виды'!H19,0)","v":0},{"$f":"IF('обязательные виды'!$A19=формулы!$B$3,'обязательные виды'!I19,0)","v":0},{"$f":"IF('обязательные виды'!$A19=формулы!$B$3,'обязательные виды'!J19,0)","v":0},{"$f":"IF('обязательные виды'!$A19=формулы!$B$3,'обязательные виды'!K19,0)","v":0},{"$f":"IF('обязательные виды'!$A19=формулы!$B$3,'обязательные виды'!L19,0)","v":0},{"$f":"IF('обязательные виды'!$A19=формулы!$B$3,'обязательные виды'!M19,0)","v":0},{"$f":"IF('обязательные виды'!$A19=формулы!$B$3,'обязательные виды'!N19,0)","v":0},{"$f":"IF('обязательные виды'!$A19=формулы!$B$3,'обязательные виды'!O19,0)","v":0}]
["ОСГО",{"$f":"IF('обязательные виды'!$A20=формулы!$B$3,'обязательные виды'!B20,0)","v":0},{"$f":"IF('обязательные виды'!$A20=формулы!$B$3,'обязательные виды'!C20,0)","v":0},{"$f":"IF('обязательные виды'!$A20=формулы!$B$3,'обязательные виды'!D20,0)","v":0},{"$f":"IF('обязательные виды'!$A20=формулы!$B$3,'обязательные виды'!E20,0)","v":0},{"$f":"IF('обязательные виды'!$A20=формулы!$B$3,'обязательные виды'!F20,0)","v":0},{"$f":"IF('обязательные виды'!$A20=формулы!$B$3,'обязательные виды'!G20,0)","v":0},{"$f":"IF('обязательные виды'!$A20=формулы!$B$3,'обязательные виды'!H20,0)","v":0},{"$f":"IF('обязательные виды'!$A20=формулы!$B$3,'обязательные виды'!I20,0)","v":0},{"$f":"IF('обязательные виды'!$A20=формулы!$B$3,'обязательные виды'!J20,0)","v":0},{"$f":"IF('обязательные виды'!$A20=формулы!$B$3,'обязательные виды'!K20,0)","v":0},{"$f":"IF('обязательные виды'!$A20=формулы!$B$3,'обязательные виды'!L20,0)","v":0},{"$f":"IF('обязательные виды'!$A20=формулы!$B$3,'обязательные виды'!M20,0)","v":0},{"$f":"IF('обязательные виды'!$A20=формулы!$B$3,'обязательные виды'!N20,0)","v":0},{"$f":"IF('обязательные виды'!$A20=формулы!$B$3,'обязательные виды'!O20,0)","v":0}]
["ОСГО",{"$f":"IF('обязательные виды'!$A21=формулы!$B$3,'обязательные виды'!B21,0)","v":0},{"$f":"IF('обязательные виды'!$A21=формулы!$B$3,'обязательные виды'!C21,0)","v":0},{"$f":"IF('обязательные виды'!$A21=формулы!$B$3,'обязательные виды'!D21,0)","v":0},{"$f":"IF('обязательные виды'!$A21=формулы!$B$3,'обязательные виды'!E21,0)","v":0},{"$f":"IF('обязательные виды'!$A21=формулы!$B$3,'обязательные виды'!F21,0)","v":0},{"$f":"IF('обязательные виды'!$A21=формулы!$B$3,'обязательные виды'!G21,0)","v":0},{"$f":"IF('обязательные виды'!$A21=формулы!$B$3,'обязательные виды'!H21,0)","v":0},{"$f":"IF('обязательные виды'!$A21=формулы!$B$3,'обязательные виды'!I21,0)","v":0},{"$f":"IF('обязательные виды'!$A21=формулы!$B$3,'обязательные виды'!J21,0)","v":0},{"$f":"IF('обязательные виды'!$A21=формулы!$B$3,'обязательные виды'!K21,0)","v":0},{"$f":"IF('обязательные виды'!$A21=формулы!$B$3,'обязательные виды'!L21,0)","v":0},{"$f":"IF('обязательные виды'!$A21=формулы!$B$3,'обязательные виды'!M21,0)","v":0},{"$f":"IF('обязательные виды'!$A21=формулы!$B$3,'обязательные виды'!N21,0)","v":0},{"$f":"IF('обязательные виды'!$A21=формулы!$B$3,'обязательные виды'!O21,0)","v":0}]
["ОСГО",{"$f":"IF('обязательные виды'!$A22=формулы!$B$3,'обязательные виды'!B22,0)","v":0},{"$f":"IF('обязательные виды'!$A22=формулы!$B$3,'обязательные виды'!C22,0)","v":0},{"$f":"IF('обязательные виды'!$A22=формулы!$B$3,'обязательные виды'!D22,0)","v":0},{"$f":"IF('обязательные виды'!$A22=формулы!$B$3,'обязательные виды'!E22,0)","v":0},{"$f":"IF('обязательные виды'!$A22=формулы!$B$3,'обязательные виды'!F22,0)","v":0},{"$f":"IF('обязательные виды'!$A22=формулы!$B$3,'обязательные виды'!G22,0)","v":0},{"$f":"IF('обязательные виды'!$A22=формулы!$B$3,'обязательные виды'!H22,0)","v":0},{"$f":"IF('обязательные виды'!$A22=формулы!$B$3,'обязательные виды'!I22,0)","v":0},{"$f":"IF('обязательные виды'!$A22=формулы!$B$3,'обязательные виды'!J22,0)","v":0},{"$f":"IF('обязательные виды'!$A22=формулы!$B$3,'обязательные виды'!K22,0)","v":0},{"$f":"IF('обязательные виды'!$A22=формулы!$B$3,'обязательные виды'!L22,0)","v":0},{"$f":"IF('обязательные виды'!$A22=формулы!$B$3,'обязательные виды'!M22,0)","v":0},{"$f":"IF('обязательные виды'!$A22=формулы!$B$3,'обязательные виды'!N22,0)","v":0},{"$f":"IF('обязательные виды'!$A22=формулы!$B$3,'обязательные виды'!O22,0)","v":0}]
["Всего",{"$f":"SUM(B80:B90)","v":0},{"$f":"SUM(C80:C90)","v":0},0,0,0,0,0,0,0,0,0,0,0,{"$f":"SUM(O80:O90)","v":0}]
[]
[]
[]
["Обязательные виды ОСГОР"]
["Виды обязательного страхования","Количество договоров страхования (шт.)",null,null,null,"Объем поступившей страховой премии (тыс. сум)",null,null,null,"Объем принятых страховых обязательств (тыс. сум)",null,null,null,"Объем страховых выплат (тыс. сум)"]
[null,"действующих на отчетную дату ",null,"заключенных за отчетный период",null,"по действующим на отчетную дату договорам страхования  ",null,"по заключенным за отчетный период договорам страхования ",null,"по действующим на отчетную дату договорам страхования  ",null,"по заключенным за отчетный период договорам страхования "]
[null,"юр. лица","физ. лица","юр. лица","физ. лица","юр. лица","физ. лица","юр. лица","физ. лица","юр. лица","физ. лица","юр. лица","физ. лица","юр. лица","физ. лица"]
[null,1,2,3,4,5,6,7,8,9,10,11,12,13,14]
["ОСГОР",{"$f":"IF('обязательные виды'!$A12=формулы!$B$4,'обязательные виды'!B12,0)","v":0},{"$f":"IF('обязательные виды'!$A12=формулы!$B$4,'обязательные виды'!C12,0)","v":0},{"$f":"IF('обязательные виды'!$A12=формулы!$B$4,'обязательные виды'!D12,0)","v":0},{"$f":"IF('обязательные виды'!$A12=формулы!$B$4,'обязательные виды'!E12,0)","v":0},{"$f":"IF('обязательные виды'!$A12=формулы!$B$4,'обязательные виды'!F12,0)","v":0},{"$f":"IF('обязательные виды'!$A12=формулы!$B$4,'обязательные виды'!G12,0)","v":0},{"$f":"IF('обязательные виды'!$A12=формулы!$B$4,'обязательные виды'!H12,0)","v":0},{"$f":"IF('обязательные виды'!$A12=формулы!$B$4,'обязательные виды'!I12,0)","v":0},{"$f":"IF('обязательные виды'!$A12=формулы!$B$4,'обязательные виды'!J12,0)","v":0},{"$f":"IF('обязательные виды'!$A12=формулы!$B$4,'обязательные виды'!K12,0)","v":0},{"$f":"IF('обязательные виды'!$A12=формулы!$B$4,'обязательные виды'!L12,0)","v":0},{"$f":"IF('обязательные виды'!$A12=формулы!$B$4,'обязательные виды'!M12,0)","v":0},{"$f":"IF('обязательные виды'!$A12=формулы!$B$4,'обязательные виды'!N12,0)","v":0},{"$f":"IF('обязательные виды'!$A12=формулы!$B$4,'обязательные виды'!O12,0)","v":0}]
["ОСГОР",{"$f":"IF('обязательные виды'!$A13=формулы!$B$4,'обязательные виды'!B13,0)","v":0},{"$f":"IF('обязательные виды'!$A13=формулы!$B$4,'обязательные виды'!C13,0)","v":0},{"$f":"IF('обязательные виды'!$A13=формулы!$B$4,'обязательные виды'!D13,0)","v":0},{"$f":"IF('обязательные виды'!$A13=формулы!$B$4,'обязательные виды'!E13,0)","v":0},{"$f":"IF('обязательные виды'!$A13=формулы!$B$4,'обязательные виды'!F13,0)","v":0},{"$f":"IF('обязательные виды'!$A13=формулы!$B$4,'обязательные виды'!G13,0)","v":0},{"$f":"IF('обязательные виды'!$A13=формулы!$B$4,'обязательные виды'!H13,0)","v":0},{"$f":"IF('обязательные виды'!$A13=формулы!$B$4,'обязательные виды'!I13,0)","v":0},{"$f":"IF('обязательные виды'!$A13=формулы!$B$4,'обязательные виды'!J13,0)","v":0},{"$f":"IF('обязательные виды'!$A13=формулы!$B$4,'обязательные виды'!K13,0)","v":0},{"$f":"IF('обязательные виды'!$A13=формулы!$B$4,'обязательные виды'!L13,0)","v":0},{"$f":"IF('обязательные виды'!$A13=формулы!$B$4,'обязательные виды'!M13,0)","v":0},{"$f":"IF('обязательные виды'!$A13=формулы!$B$4,'обязательные виды'!N13,0)","v":0},{"$f":"IF('обязательные виды'!$A13=формулы!$B$4,'обязательные виды'!O13,0)","v":0}]
["ОСГОР",{"$f":"IF('обязательные виды'!$A14=формулы!$B$4,'обязательные виды'!B14,0)","v":0},{"$f":"IF('обязательные виды'!$A14=формулы!$B$4,'обязательные виды'!C14,0)","v":0},{"$f":"IF('обязательные виды'!$A14=формулы!$B$4,'обязательные виды'!D14,0)","v":0},{"$f":"IF('обязательные виды'!$A14=формулы!$B$4,'обязательные виды'!E14,0)","v":0},{"$f":"IF('обязательные виды'!$A14=формулы!$B$4,'обязательные виды'!F14,0)","v":0},{"$f":"IF('обязательные виды'!$A14=формулы!$B$4,'обязательные виды'!G14,0)","v":0},{"$f":"IF('обязательные виды'!$A14=формулы!$B$4,'обязательные виды'!H14,0)","v":0},{"$f":"IF('обязательные виды'!$A14=формулы!$B$4,'обязательные виды'!I14,0)","v":0},{"$f":"IF('обязательные виды'!$A14=формулы!$B$4,'обязательные виды'!J14,0)","v":0},{"$f":"IF('обязательные виды'!$A14=формулы!$B$4,'обязательные виды'!K14,0)","v":0},{"$f":"IF('обязательные виды'!$A14=формулы!$B$4,'обязательные виды'!L14,0)","v":0},{"$f":"IF('обязательные виды'!$A14=формулы!$B$4,'обязательные виды'!M14,0)","v":0},{"$f":"IF('обязательные виды'!$A14=формулы!$B$4,'обязательные виды'!N14,0)","v":0},{"$f":"IF('обязательные виды'!$A14=формулы!$B$4,'обязательные виды'!O14,0)","v":0}]
["ОСГОР",{"$f":"IF('обязательные виды'!$A15=формулы!$B$4,'обязательные виды'!B15,0)","v":0},{"$f":"IF('обязательные виды'!$A15=формулы!$B$4,'обязательные виды'!C15,0)","v":0},{"$f":"IF('обязательные виды'!$A15=формулы!$B$4,'обязательные виды'!D15,0)","v":0},{"$f":"IF('обязательные виды'!$A15=формулы!$B$4,'обязательные виды'!E15,0)","v":0},{"$f":"IF('обязательные виды'!$A15=формулы!$B$4,'обязательные виды'!F15,0)","v":0},{"$f":"IF('обязательные виды'!$A15=формулы!$B$4,'обязательные виды'!G15,0)","v":0},{"$f":"IF('обязательные виды'!$A15=формулы!$B$4,'обязательные виды'!H15,0)","v":0},{"$f":"IF('обязательные виды'!$A15=формулы!$B$4,'обязательные виды'!I15,0)","v":0},{"$f":"IF('обязательные виды'!$A15=формулы!$B$4,'обязательные виды'!J15,0)","v":0},{"$f":"IF('обязательные виды'!$A15=формулы!$B$4,'обязательные виды'!K15,0)","v":0},{"$f":"IF('обязательные виды'!$A15=формулы!$B$4,'обязательные виды'!L15,0)","v":0},{"$f":"IF('обязательные виды'!$A15=формулы!$B$4,'обязательные виды'!M15,0)","v":0},{"$f":"IF('обязательные виды'!$A15=формулы!$B$4,'обязательные виды'!N15,0)","v":0},{"$f":"IF('обязательные виды'!$A15=формулы!$B$4,'обязательные виды'!O15,0)","v":0}]
["ОСГОР",{"$f":"IF('обязательные виды'!$A16=формулы!$B$4,'обязательные виды'!B16,0)","v":0},{"$f":"IF('обязательные виды'!$A16=формулы!$B$4,'обязательные виды'!C16,0)","v":0},{"$f":"IF('обязательные виды'!$A16=формулы!$B$4,'обязательные виды'!D16,0)","v":0},{"$f":"IF('обязательные виды'!$A16=формулы!$B$4,'обязательные виды'!E16,0)","v":0},{"$f":"IF('обязательные виды'!$A16=формулы!$B$4,'обязательные виды'!F16,0)","v":0},{"$f":"IF('обязательные виды'!$A16=формулы!$B$4,'обязательные виды'!G16,0)","v":0},{"$f":"IF('обязательные виды'!$A16=формулы!$B$4,'обязательные виды'!H16,0)","v":0},{"$f":"IF('обязательные виды'!$A16=формулы!$B$4,'обязательные виды'!I16,0)","v":0},{"$f":"IF('обязательные виды'!$A16=формулы!$B$4,'обязательные виды'!J16,0)","v":0},{"$f":"IF('обязательные виды'!$A16=формулы!$B$4,'обязательные виды'!K16,0)","v":0},{"$f":"IF('обязательные виды'!$A16=формулы!$B$4,'обязательные виды'!L16,0)","v":0},{"$f":"IF('обязательные виды'!$A16=формулы!$B$4,'обязательные виды'!M16,0)","v":0},{"$f":"IF('обязательные виды'!$A16=формулы!$B$4,'обязательные виды'!N16,0)","v":0},{"$f":"IF('обязательные виды'!$A16=формулы!$B$4,'обязательные виды'!O16,0)","v":0}]
["ОСГОР",{"$f":"IF('обязательные виды'!$A17=формулы!$B$4,'обязательные виды'!B17,0)","v":0},{"$f":"IF('обязательные виды'!$A17=формулы!$B$4,'обязательные виды'!C17,0)","v":0},{"$f":"IF('обязательные виды'!$A17=формулы!$B$4,'обязательные виды'!D17,0)","v":0},{"$f":"IF('обязательные виды'!$A17=формулы!$B$4,'обязательные виды'!E17,0)","v":0},{"$f":"IF('обязательные виды'!$A17=формулы!$B$4,'обязательные виды'!F17,0)","v":0},{"$f":"IF('обязательные виды'!$A17=формулы!$B$4,'обязательные виды'!G17,0)","v":0},{"$f":"IF('обязательные виды'!$A17=формулы!$B$4,'обязательные виды'!H17,0)","v":0},{"$f":"IF('обязательные виды'!$A17=формулы!$B$4,'обязательные виды'!I17,0)","v":0},{"$f":"IF('обязательные виды'!$A17=формулы!$B$4,'обязательные виды'!J17,0)","v":0},{"$f":"IF('обязательные виды'!$A17=формулы!$B$4,'обязательные виды'!K17,0)","v":0},{"$f":"IF('обязательные виды'!$A17=формулы!$B$4,'обязательные виды'!L17,0)","v":0},{"$f":"IF('обязательные виды'!$A17=формулы!$B$4,'обязательные виды'!M17,0)","v":0},{"$f":"IF('обязательные виды'!$A17=формулы!$B$4,'обязательные виды'!N17,0)","v":0},{"$f":"IF('обязательные виды'!$A17=формулы!$B$4,'обязательные виды'!O17,0)","v":0}]
["ОСГОР",{"$f":"IF('обязательные виды'!$A18=формулы!$B$4,'обязательные виды'!B18,0)","v":0},{"$f":"IF('обязательные виды'!$A18=формулы!$B$4,'обязательные виды'!C18,0)","v":0},{"$f":"IF('обязательные виды'!$A18=формулы!$B$4,'обязательные виды'!D18,0)","v":0},{"$f":"IF('обязательные виды'!$A18=формулы!$B$4,'обязательные виды'!E18,0)","v":0},{"$f":"IF('обязательные виды'!$A18=формулы!$B$4,'обязательные виды'!F18,0)","v":0},{"$f":"IF('обязательные виды'!$A18=формулы!$B$4,'обязательные виды'!G18,0)","v":0},{"$f":"IF('обязательные виды'!$A18=формулы!$B$4,'обязательные виды'!H18,0)","v":0},{"$f":"IF('обязательные виды'!$A18=формулы!$B$4,'обязательные виды'!I18,0)","v":0},{"$f":"IF('обязательные виды'!$A18=формулы!$B$4,'обязательные виды'!J18,0)","v":0},{"$f":"IF('обязательные виды'!$A18=формулы!$B$4,'обязательные виды'!K18,0)","v":0},{"$f":"IF('обязательные виды'!$A18=формулы!$B$4,'обязательные виды'!L18,0)","v":0},{"$f":"IF('обязательные виды'!$A18=формулы!$B$4,'обязательные виды'!M18,0)","v":0},{"$f":"IF('обязательные виды'!$A18=формулы!$B$4,'обязательные виды'!N18,0)","v":0},{"$f":"IF('обязательные виды'!$A18=формулы!$B$4,'обязательные виды'!O18,0)","v":0}]
["ОСГОР",{"$f":"IF('обязательные виды'!$A19=формулы!$B$4,'обязательные виды'!B19,0)","v":0},{"$f":"IF('обязательные виды'!$A19=формулы!$B$4,'обязательные виды'!C19,0)","v":0},{"$f":"IF('обязательные виды'!$A19=формулы!$B$4,'обязательные виды'!D19,0)","v":0},{"$f":"IF('обязательные виды'!$A19=формулы!$B$4,'обязательные виды'!E19,0)","v":0},{"$f":"IF('обязательные виды'!$A19=формулы!$B$4,'обязательные виды'!F19,0)","v":0},{"$f":"IF('обязательные виды'!$A19=формулы!$B$4,'обязательные виды'!G19,0)","v":0},{"$f":"IF('обязательные виды'!$A19=формулы!$B$4,'обязательные виды'!H19,0)","v":0},{"$f":"IF('обязательные виды'!$A19=формулы!$B$4,'обязательные виды'!I19,0)","v":0},{"$f":"IF('обязательные виды'!$A19=формулы!$B$4,'обязательные виды'!J19,0)","v":0},{"$f":"IF('обязательные виды'!$A19=формулы!$B$4,'обязательные виды'!K19,0)","v":0},{"$f":"IF('обязательные виды'!$A19=формулы!$B$4,'обязательные виды'!L19,0)","v":0},{"$f":"IF('обязательные виды'!$A19=формулы!$B$4,'обязательные виды'!M19,0)","v":0},{"$f":"IF('обязательные виды'!$A19=формулы!$B$4,'обязательные виды'!N19,0)","v":0},{"$f":"IF('обязательные виды'!$A19=формулы!$B$4,'обязательные виды'!O19,0)","v":0}]
["ОСГОР",{"$f":"IF('обязательные виды'!$A20=формулы!$B$4,'обязательные виды'!B20,0)","v":0},{"$f":"IF('обязательные виды'!$A20=формулы!$B$4,'обязательные виды'!C20,0)","v":0},{"$f":"IF('обязательные виды'!$A20=формулы!$B$4,'обязательные виды'!D20,0)","v":0},{"$f":"IF('обязательные виды'!$A20=формулы!$B$4,'обязательные виды'!E20,0)","v":0},{"$f":"IF('обязательные виды'!$A20=формулы!$B$4,'обязательные виды'!F20,0)","v":0},{"$f":"IF('обязательные виды'!$A20=формулы!$B$4,'обязательные виды'!G20,0)","v":0},{"$f":"IF('обязательные виды'!$A20=формулы!$B$4,'обязательные виды'!H20,0)","v":0},{"$f":"IF('обязательные виды'!$A20=формулы!$B$4,'обязательные виды'!I20,0)","v":0},{"$f":"IF('обязательные виды'!$A20=формулы!$B$4,'обязательные виды'!J20,0)","v":0},{"$f":"IF('обязательные виды'!$A20=формулы!$B$4,'обязательные виды'!K20,0)","v":0},{"$f":"IF('обязательные виды'!$A20=формулы!$B$4,'обязательные виды'!L20,0)","v":0},{"$f":"IF('обязательные виды'!$A20=формулы!$B$4,'обязательные виды'!M20,0)","v":0},{"$f":"IF('обязательные виды'!$A20=формулы!$B$4,'обязательные виды'!N20,0)","v":0},{"$f":"IF('обязательные виды'!$A20=формулы!$B$4,'обязательные виды'!O20,0)","v":0}]
["ОСГОР",{"$f":"IF('обязательные виды'!$A21=формулы!$B$4,'обязательные виды'!B21,0)","v":0},{"$f":"IF('обязательные виды'!$A21=формулы!$B$4,'обязательные виды'!C21,0)","v":0},{"$f":"IF('обязательные виды'!$A21=формулы!$B$4,'обязательные виды'!D21,0)","v":0},{"$f":"IF('обязательные виды'!$A21=формулы!$B$4,'обязательные виды'!E21,0)","v":0},{"$f":"IF('обязательные виды'!$A21=формулы!$B$4,'обязательные виды'!F21,0)","v":0},{"$f":"IF('обязательные виды'!$A21=формулы!$B$4,'обязательные виды'!G21,0)","v":0},{"$f":"IF('обязательные виды'!$A21=формулы!$B$4,'обязательные виды'!H21,0)","v":0},{"$f":"IF('обязательные виды'!$A21=формулы!$B$4,'обязательные виды'!I21,0)","v":0},{"$f":"IF('обязательные виды'!$A21=формулы!$B$4,'обязательные виды'!J21,0)","v":0},{"$f":"IF('обязательные виды'!$A21=формулы!$B$4,'обязательные виды'!K21,0)","v":0},{"$f":"IF('обязательные виды'!$A21=формулы!$B$4,'обязательные виды'!L21,0)","v":0},{"$f":"IF('обязательные виды'!$A21=формулы!$B$4,'обязательные виды'!M21,0)","v":0},{"$f":"IF('обязательные виды'!$A21=формулы!$B$4,'обязательные виды'!N21,0)","v":0},{"$f":"IF('обязательные виды'!$A21=формулы!$B$4,'обязательные виды'!O21,0)","v":0}]
["ОСГОР",{"$f":"IF('обязательные виды'!$A22=формулы!$B$4,'обязательные виды'!B22,0)","v":0},{"$f":"IF('обязательные виды'!$A22=формулы!$B$4,'обязательные виды'!C22,0)","v":0},{"$f":"IF('обязательные виды'!$A22=формулы!$B$4,'обязательные виды'!D22,0)","v":0},{"$f":"IF('обязательные виды'!$A22=формулы!$B$4,'обязательные виды'!E22,0)","v":0},{"$f":"IF('обязательные виды'!$A22=формулы!$B$4,'обязательные виды'!F22,0)","v":0},{"$f":"IF('обязательные виды'!$A22=формулы!$B$4,'обязательные виды'!G22,0)","v":0},{"$f":"IF('обязательные виды'!$A22=формулы!$B$4,'обязательные виды'!H22,0)","v":0},{"$f":"IF('обязательные виды'!$A22=формулы!$B$4,'обязательные виды'!I22,0)","v":0},{"$f":"IF('обязательные виды'!$A22=формулы!$B$4,'обязательные виды'!J22,0)","v":0},{"$f":"IF('обязательные виды'!$A22=формулы!$B$4,'обязательные виды'!K22,0)","v":0},{"$f":"IF('обязательные виды'!$A22=формулы!$B$4,'обязательные виды'!L22,0)","v":0},{"$f":"IF('обязательные виды'!$A22=формулы!$B$4,'обязательные виды'!M22,0)","v":0},{"$f":"IF('обязательные виды'!$A22=формулы!$B$4,'обязательные виды'!N22,0)","v":0},{"$f":"IF('обязательные виды'!$A22=формулы!$B$4,'обязательные виды'!O22,0)","v":0}]
["Всего",{"$f":"SUM(B100:B110)","v":0},{"$f":"SUM(C100:C110)","v":0},0,0,0,0,0,0,0,0,0,0,0,{"$f":"SUM(O100:O110)","v":0}]
[]
[]
[]
["Обязательные виды ОСГОП"]
["Виды обязательного страхования","Количество договоров страхования (шт.)",null,null,null,"Объем поступившей страховой премии (тыс. сум)",null,null,null,"Объем принятых страховых обязательств (тыс. сум)",null,null,null,"Объем страховых выплат (тыс. сум)"]
[null,"действующих на отчетную дату ",null,"заключенных за отчетный период",null,"по действующим на отчетную дату договорам страхования  ",null,"по заключенным за отчетный период договорам страхования ",null,"по действующим на отчетную дату договорам страхования  ",null,"по заключенным за отчетный период договорам страхования "]
[null,"юр. лица","физ. лица","юр. лица","физ. лица","юр. лица","физ. лица","юр. лица","физ. лица","юр. лица","физ. лица","юр. лица","физ. лица","юр. лица","физ. лица"]
[null,1,2,3,4,5,6,7,8,9,10,11,12,13,14]
["ОСГОП",{"$f":"IF('обязательные виды'!$A12=формулы!$B$5,'обязательные виды'!B12,0)","v":0},{"$f":"IF('обязательные виды'!$A12=формулы!$B$5,'обязательные виды'!C12,0)","v":0},{"$f":"IF('обязательные виды'!$A12=формулы!$B$5,'обязательные виды'!D12,0)","v":0},{"$f":"IF('обязательные виды'!$A12=формулы!$B$5,'обязательные виды'!E12,0)","v":0},{"$f":"IF('обязательные виды'!$A12=формулы!$B$5,'обязательные виды'!F12,0)","v":0},{"$f":"IF('обязательные виды'!$A12=формулы!$B$5,'обязательные виды'!G12,0)","v":0},{"$f":"IF('обязательные виды'!$A12=формулы!$B$5,'обязательные виды'!H12,0)","v":0},{"$f":"IF('обязательные виды'!$A12=формулы!$B$5,'обязательные виды'!I12,0)","v":0},{"$f":"IF('обязательные виды'!$A12=формулы!$B$5,'обязательные виды'!J12,0)","v":0},{"$f":"IF('обязательные виды'!$A12=формулы!$B$5,'обязательные виды'!K12,0)","v":0},{"$f":"IF('обязательные виды'!$A12=формулы!$B$5,'обязательные виды'!L12,0)","v":0},{"$f":"IF('обязательные виды'!$A12=формулы!$B$5,'обязательные виды'!M12,0)","v":0},{"$f":"IF('обязательные виды'!$A12=формулы!$B$5,'обязательные виды'!N12,0)","v":0},{"$f":"IF('обязательные виды'!$A12=формулы!$B$5,'обязательные виды'!O12,0)","v":0}]
["ОСГОП",{"$f":"IF('обязательные виды'!$A13=формулы!$B$5,'обязательные виды'!B13,0)","v":0},{"$f":"IF('обязательные виды'!$A13=формулы!$B$5,'обязательные виды'!C13,0)","v":0},{"$f":"IF('обязательные виды'!$A13=формулы!$B$5,'обязательные виды'!D13,0)","v":0},{"$f":"IF('обязательные виды'!$A13=формулы!$B$5,'обязательные виды'!E13,0)","v":0},{"$f":"IF('обязательные виды'!$A13=формулы!$B$5,'обязательные виды'!F13,0)","v":0},{"$f":"IF('обязательные виды'!$A13=формулы!$B$5,'обязательные виды'!G13,0)","v":0},{"$f":"IF('обязательные виды'!$A13=формулы!$B$5,'обязательные виды'!H13,0)","v":0},{"$f":"IF('обязательные виды'!$A13=формулы!$B$5,'обязательные виды'!I13,0)","v":0},{"$f":"IF('обязательные виды'!$A13=формулы!$B$5,'обязательные виды'!J13,0)","v":0},{"$f":"IF('обязательные виды'!$A13=формулы!$B$5,'обязательные виды'!K13,0)","v":0},{"$f":"IF('обязательные виды'!$A13=формулы!$B$5,'обязательные виды'!L13,0)","v":0},{"$f":"IF('обязательные виды'!$A13=формулы!$B$5,'обязательные виды'!M13,0)","v":0},{"$f":"IF('обязательные виды'!$A13=формулы!$B$5,'обязательные виды'!N13,0)","v":0},{"$f":"IF('обязательные виды'!$A13=формулы!$B$5,'обязательные виды'!O13,0)","v":0}]
["ОСГОП",{"$f":"IF('обязательные виды'!$A14=формулы!$B$5,'обязательные виды'!B14,0)","v":0},{"$f":"IF('обязательные виды'!$A14=формулы!$B$5,'обязательные виды'!C14,0)","v":0},{"$f":"IF('обязательные виды'!$A14=формулы!$B$5,'обязательные виды'!D14,0)","v":0},{"$f":"IF('обязательные виды'!$A14=формулы!$B$5,'обязательные виды'!E14,0)","v":0},{"$f":"IF('обязательные виды'!$A14=формулы!$B$5,'обязательные виды'!F14,0)","v":0},{"$f":"IF('обязательные виды'!$A14=формулы!$B$5,'обязательные виды'!G14,0)","v":0},{"$f":"IF('обязательные виды'!$A14=формулы!$B$5,'обязательные виды'!H14,0)","v":0},{"$f":"IF('обязательные виды'!$A14=формулы!$B$5,'обязательные виды'!I14,0)","v":0},{"$f":"IF('обязательные виды'!$A14=формулы!$B$5,'обязательные виды'!J14,0)","v":0},{"$f":"IF('обязательные виды'!$A14=формулы!$B$5,'обязательные виды'!K14,0)","v":0},{"$f":"IF('обязательные виды'!$A14=формулы!$B$5,'обязательные виды'!L14,0)","v":0},{"$f":"IF('обязательные виды'!$A14=формулы!$B$5,'обязательные виды'!M14,0)","v":0},{"$f":"IF('обязательные виды'!$A14=формулы!$B$5,'обязательные виды'!N14,0)","v":0},{"$f":"IF('обязательные виды'!$A14=формулы!$B$5,'обязательные виды'!O14,0)","v":0}]
["ОСГОП",{"$f":"IF('обязательные виды'!$A15=формулы!$B$5,'обязательные виды'!B15,0)","v":0},{"$f":"IF('обязательные виды'!$A15=формулы!$B$5,'обязательные виды'!C15,0)","v":0},{"$f":"IF('обязательные виды'!$A15=формулы!$B$5,'обязательные виды'!D15,0)","v":0},{"$f":"IF('обязательные виды'!$A15=формулы!$B$5,'обязательные виды'!E15,0)","v":0},{"$f":"IF('обязательные виды'!$A15=формулы!$B$5,'обязательные виды'!F15,0)","v":0},{"$f":"IF('обязательные виды'!$A15=формулы!$B$5,'обязательные виды'!G15,0)","v":0},{"$f":"IF('обязательные виды'!$A15=формулы!$B$5,'обязательные виды'!H15,0)","v":0},{"$f":"IF('обязательные виды'!$A15=формулы!$B$5,'обязательные виды'!I15,0)","v":0},{"$f":"IF('обязательные виды'!$A15=формулы!$B$5,'обязательные виды'!J15,0)","v":0},{"$f":"IF('обязательные виды'!$A15=формулы!$B$5,'обязательные виды'!K15,0)","v":0},{"$f":"IF('обязательные виды'!$A15=формулы!$B$5,'обязательные виды'!L15,0)","v":0},{"$f":"IF('обязательные виды'!$A15=формулы!$B$5,'обязательные виды'!M15,0)","v":0},{"$f":"IF('обязательные виды'!$A15=формулы!$B$5,'обязательные виды'!N15,0)","v":0},{"$f":"IF('обязательные виды'!$A15=формулы!$B$5,'обязательные виды'!O15,0)","v":0}]
["ОСГОП",{"$f":"IF('обязательные виды'!$A16=формулы!$B$5,'обязательные виды'!B16,0)","v":0},{"$f":"IF('обязательные виды'!$A16=формулы!$B$5,'обязательные виды'!C16,0)","v":0},{"$f":"IF('обязательные виды'!$A16=формулы!$B$5,'обязательные виды'!D16,0)","v":0},{"$f":"IF('обязательные виды'!$A16=формулы!$B$5,'обязательные виды'!E16,0)","v":0},{"$f":"IF('обязательные виды'!$A16=формулы!$B$5,'обязательные виды'!F16,0)","v":0},{"$f":"IF('обязательные виды'!$A16=формулы!$B$5,'обязательные виды'!G16,0)","v":0},{"$f":"IF('обязательные виды'!$A16=формулы!$B$5,'обязательные виды'!H16,0)","v":0},{"$f":"IF('обязательные виды'!$A16=формулы!$B$5,'обязательные виды'!I16,0)","v":0},{"$f":"IF('обязательные виды'!$A16=формулы!$B$5,'обязательные виды'!J16,0)","v":0},{"$f":"IF('обязательные виды'!$A16=формулы!$B$5,'обязательные виды'!K16,0)","v":0},{"$f":"IF('обязательные виды'!$A16=формулы!$B$5,'обязательные виды'!L16,0)","v":0},{"$f":"IF('обязательные виды'!$A16=формулы!$B$5,'обязательные виды'!M16,0)","v":0},{"$f":"IF('обязательные виды'!$A16=формулы!$B$5,'обязательные виды'!N16,0)","v":0},{"$f":"IF('обязательные виды'!$A16=формулы!$B$5,'обязательные виды'!O16,0)","v":0}]
["ОСГОП",{"$f":"IF('обязательные виды'!$A17=формулы!$B$5,'обязательные виды'!B17,0)","v":0},{"$f":"IF('обязательные виды'!$A17=формулы!$B$5,'обязательные виды'!C17,0)","v":0},{"$f":"IF('обязательные виды'!$A17=формулы!$B$5,'обязательные виды'!D17,0)","v":0},{"$f":"IF('обязательные виды'!$A17=формулы!$B$5,'обязательные виды'!E17,0)","v":0},{"$f":"IF('обязательные виды'!$A17=формулы!$B$5,'обязательные виды'!F17,0)","v":0},{"$f":"IF('обязательные виды'!$A17=формулы!$B$5,'обязательные виды'!G17,0)","v":0},{"$f":"IF('обязательные виды'!$A17=формулы!$B$5,'обязательные виды'!H17,0)","v":0},{"$f":"IF('обязательные виды'!$A17=формулы!$B$5,'обязательные виды'!I17,0)","v":0},{"$f":"IF('обязательные виды'!$A17=формулы!$B$5,'обязательные виды'!J17,0)","v":0},{"$f":"IF('обязательные виды'!$A17=формулы!$B$5,'обязательные виды'!K17,0)","v":0},{"$f":"IF('обязательные виды'!$A17=формулы!$B$5,'обязательные виды'!L17,0)","v":0},{"$f":"IF('обязательные виды'!$A17=формулы!$B$5,'обязательные виды'!M17,0)","v":0},{"$f":"IF('обязательные виды'!$A17=формулы!$B$5,'обязательные виды'!N17,0)","v":0},{"$f":"IF('обязательные виды'!$A17=формулы!$B$5,'обязательные виды'!O17,0)","v":0}]
["ОСГОП",{"$f":"IF('обязательные виды'!$A18=формулы!$B$5,'обязательные виды'!B18,0)","v":0},{"$f":"IF('обязательные виды'!$A18=формулы!$B$5,'обязательные виды'!C18,0)","v":0},{"$f":"IF('обязательные виды'!$A18=формулы!$B$5,'обязательные виды'!D18,0)","v":0},{"$f":"IF('обязательные виды'!$A18=формулы!$B$5,'обязательные виды'!E18,0)","v":0},{"$f":"IF('обязательные виды'!$A18=формулы!$B$5,'обязательные виды'!F18,0)","v":0},{"$f":"IF('обязательные виды'!$A18=формулы!$B$5,'обязательные виды'!G18,0)","v":0},{"$f":"IF('обязательные виды'!$A18=формулы!$B$5,'обязательные виды'!H18,0)","v":0},{"$f":"IF('обязательные виды'!$A18=формулы!$B$5,'обязательные виды'!I18,0)","v":0},{"$f":"IF('обязательные виды'!$A18=формулы!$B$5,'обязательные виды'!J18,0)","v":0},{"$f":"IF('обязательные виды'!$A18=формулы!$B$5,'обязательные виды'!K18,0)","v":0},{"$f":"IF('обязательные виды'!$A18=формулы!$B$5,'обязательные виды'!L18,0)","v":0},{"$f":"IF('обязательные виды'!$A18=формулы!$B$5,'обязательные виды'!M18,0)","v":0},{"$f":"IF('обязательные виды'!$A18=формулы!$B$5,'обязательные виды'!N18,0)","v":0},{"$f":"IF('обязательные виды'!$A18=формулы!$B$5,'обязательные виды'!O18,0)","v":0}]
["ОСГОП",{"$f":"IF('обязательные виды'!$A19=формулы!$B$5,'обязательные виды'!B19,0)","v":0},{"$f":"IF('обязательные виды'!$A19=формулы!$B$5,'обязательные виды'!C19,0)","v":0},{"$f":"IF('обязательные виды'!$A19=формулы!$B$5,'обязательные виды'!D19,0)","v":0},{"$f":"IF('обязательные виды'!$A19=формулы!$B$5,'обязательные виды'!E19,0)","v":0},{"$f":"IF('обязательные виды'!$A19=формулы!$B$5,'обязательные виды'!F19,0)","v":0},{"$f":"IF('обязательные виды'!$A19=формулы!$B$5,'обязательные виды'!G19,0)","v":0},{"$f":"IF('обязательные виды'!$A19=формулы!$B$5,'обязательные виды'!H19,0)","v":0},{"$f":"IF('обязательные виды'!$A19=формулы!$B$5,'обязательные виды'!I19,0)","v":0},{"$f":"IF('обязательные виды'!$A19=формулы!$B$5,'обязательные виды'!J19,0)","v":0},{"$f":"IF('обязательные виды'!$A19=формулы!$B$5,'обязательные виды'!K19,0)","v":0},{"$f":"IF('обязательные виды'!$A19=формулы!$B$5,'обязательные виды'!L19,0)","v":0},{"$f":"IF('обязательные виды'!$A19=формулы!$B$5,'обязательные виды'!M19,0)","v":0},{"$f":"IF('обязательные виды'!$A19=формулы!$B$5,'обязательные виды'!N19,0)","v":0},{"$f":"IF('обязательные виды'!$A19=формулы!$B$5,'обязательные виды'!O19,0)","v":0}]
["ОСГОП",{"$f":"IF('обязательные виды'!$A20=формулы!$B$5,'обязательные виды'!B20,0)","v":0},{"$f":"IF('обязательные виды'!$A20=формулы!$B$5,'обязательные виды'!C20,0)","v":0},{"$f":"IF('обязательные виды'!$A20=формулы!$B$5,'обязательные виды'!D20,0)","v":0},{"$f":"IF('обязательные виды'!$A20=формулы!$B$5,'обязательные виды'!E20,0)","v":0},{"$f":"IF('обязательные виды'!$A20=формулы!$B$5,'обязательные виды'!F20,0)","v":0},{"$f":"IF('обязательные виды'!$A20=формулы!$B$5,'обязательные виды'!G20,0)","v":0},{"$f":"IF('обязательные виды'!$A20=формулы!$B$5,'обязательные виды'!H20,0)","v":0},{"$f":"IF('обязательные виды'!$A20=формулы!$B$5,'обязательные виды'!I20,0)","v":0},{"$f":"IF('обязательные виды'!$A20=формулы!$B$5,'обязательные виды'!J20,0)","v":0},{"$f":"IF('обязательные виды'!$A20=формулы!$B$5,'обязательные виды'!K20,0)","v":0},{"$f":"IF('обязательные виды'!$A20=формулы!$B$5,'обязательные виды'!L20,0)","v":0},{"$f":"IF('обязательные виды'!$A20=формулы!$B$5,'обязательные виды'!M20,0)","v":0},{"$f":"IF('обязательные виды'!$A20=формулы!$B$5,'обязательные виды'!N20,0)","v":0},{"$f":"IF('обязательные виды'!$A20=формулы!$B$5,'обязательные виды'!O20,0)","v":0}]
["ОСГОП",{"$f":"IF('обязательные виды'!$A21=формулы!$B$5,'обязательные виды'!B21,0)","v":0},{"$f":"IF('обязательные виды'!$A21=формулы!$B$5,'обязательные виды'!C21,0)","v":0},{"$f":"IF('обязательные виды'!$A21=формулы!$B$5,'обязательные виды'!D21,0)","v":0},{"$f":"IF('обязательные виды'!$A21=формулы!$B$5,'обязательные виды'!E21,0)","v":0},{"$f":"IF('обязательные виды'!$A21=формулы!$B$5,'обязательные виды'!F21,0)","v":0},{"$f":"IF('обязательные виды'!$A21=формулы!$B$5,'обязательные виды'!G21,0)","v":0},{"$f":"IF('обязательные виды'!$A21=формулы!$B$5,'обязательные виды'!H21,0)","v":0},{"$f":"IF('обязательные виды'!$A21=формулы!$B$5,'обязательные виды'!I21,0)","v":0},{"$f":"IF('обязательные виды'!$A21=формулы!$B$5,'обязательные виды'!J21,0)","v":0},{"$f":"IF('обязательные виды'!$A21=формулы!$B$5,'обязательные виды'!K21,0)","v":0},{"$f":"IF('обязательные виды'!$A21=формулы!$B$5,'обязательные виды'!L21,0)","v":0},{"$f":"IF('обязательные виды'!$A21=формулы!$B$5,'обязательные виды'!M21,0)","v":0},{"$f":"IF('обязательные виды'!$A21=формулы!$B$5,'обязательные виды'!N21,0)","v":0},{"$f":"IF('обязательные виды'!$A21=формулы!$B$5,'обязательные виды'!O21,0)","v":0}]
["ОСГОП",{"$f":"IF('обязательные виды'!$A22=формулы!$B$5,'обязательные виды'!B22,0)","v":0},{"$f":"IF('обязательные виды'!$A22=формулы!$B$5,'обязательные виды'!C22,0)","v":0},{"$f":"IF('обязательные виды'!$A22=формулы!$B$5,'обязательные виды'!D22,0)","v":0},{"$f":"IF('обязательные виды'!$A22=формулы!$B$5,'обязательные виды'!E22,0)","v":0},{"$f":"IF('обязательные виды'!$A22=формулы!$B$5,'обязательные виды'!F22,0)","v":0},{"$f":"IF('обязательные виды'!$A22=формулы!$B$5,'обязательные виды'!G22,0)","v":0},{"$f":"IF('обязательные виды'!$A22=формулы!$B$5,'обязательные виды'!H22,0)","v":0},{"$f":"IF('обязательные виды'!$A22=формулы!$B$5,'обязательные виды'!I22,0)","v":0},{"$f":"IF('обязательные виды'!$A22=формулы!$B$5,'обязательные виды'!J22,0)","v":0},{"$f":"IF('обязательные виды'!$A22=формулы!$B$5,'обязательные виды'!K22,0)","v":0},{"$f":"IF('обязательные виды'!$A22=формулы!$B$5,'обязательные виды'!L22,0)","v":0},{"$f":"IF('обязательные виды'!$A22=формулы!$B$5,'обязательные виды'!M22,0)","v":0},{"$f":"IF('обязательные виды'!$A22=формулы!$B$5,'обязательные виды'!N22,0)","v":0},{"$f":"IF('обязательные виды'!$A22=формулы!$B$5,'обязательные виды'!O22,0)","v":0}]
["Всего",{"$f":"SUM(B120:B130)","v":0},{"$f":"SUM(C120:C130)","v":0},0,0,0,0,0,0,0,0,0,0,0,{"$f":"SUM(O120:O130)","v":0}]

{"sheet":"ВНИМАНИЕ","index":1,"n_rows":23,"n_cols":2,"rows_kept":23,"cut":false,"hidden":false,"merged":[[1,1,17,11],[19,1,19,3],[20,1,20,3],[21,1,21,3],[22,1,22,3]]}
[]
[null,"Уважаемые коллеги!\nПри заполнении форм страховой отчетности не допускается внесение в них изменений и/или пересохранение с изменением расширения файла. Тип файла должен оставаться с поддержкой макросов.\nДопускается только вставлять дополнительные строки в соответствующих таблицах при помощи кнопки \"Добавить строку\".\nДля корректной работы с формой страховой отчетности, необходимо разрешить работу макросов.\nВ случаях не полного заполнения форм страховой отчетности и/или несоответствия данных в различных формах, соответствующая строка или столбец загораются красным цветом.\nНеобходимо заполнить количество подразделений страховой компании в областях в соответствующем листе (\"Подразделения\"), с указание их количества в каждой области (при этом центральный офис не учитывается) в таблице в верхнем правом углу, которая не попадает в область печати.\nЭлектронные формы страховой отчетности необходимо присылать на следующие эл. адреса: \nnapp@exat.uz; info@napp.uz\nПо всем вопросам обращайтесь по следующему телефонному номеру:\n(71) 231-79-18"]
[]
[]
[]
[]
[]
[]
[]
[]
[]
[]
[]
[]
[]
[]
[]
[]
[]
[null,"Отчетная дата"]
[null,"Курс доллара США"]
[null,"Курс евро"]
[null,"Курс российского рубля"]

{"sheet":"Сведения по областям","index":2,"n_rows":58,"n_cols":27,"rows_kept":58,"cut":false,"hidden":false,"merged":[[5,7,5,9],[30,0,33,0],[30,1,30,8],[57,0,57,1],[57,4,57,5],[56,0,56,1],[53,4,53,5],[53,0,53,1],[30,9,32,9],[52,0,52,1],[31,1,31,2],[31,3,31,4],[31,5,31,6],[9,11,9,12],[9,15,9,16],[9,7,9,8],[30,17,32,17],[29,11,29,12],[29,13,29,17],[30,13,30,16],[31,13,32,13],[31,14,32,14],[31,15,32,15],[30,11,30,12],[31,11,32,11],[31,12,32,12],[31,16,32,16],[30,10,32,10],[2,6,2,10],[0,14,0,17],[31,7,31,8],[8,0,11,0],[9,1,9,2],[7,1,7,8],[7,10,7,17],[8,1,8,8],[8,9,8,16],[29,1,29,8],[9,9,9,10],[9,13,9,14],[1,0,1,17],[9,5,9,6],[9,3,9,4],[3,6,3,10]]}
[null,null,null,null,null,null,null,null,null,null,null,null,null,null,"Приложение №1 к Правилам по заполнению форм страховой отчетности страховщиков"]
["СВЕДЕНИЯ О СТРАХОВОЙ ДЕЯТЕЛЬНОСТИ В РАЗРЕЗЕ РЕГИОНОВ РЕСПУБЛИКИ - ФОРМА №1"]
[]
[null,null,null,null,null,null,"(наименование страховщика)"]
[]
[null,null,null,null,null,null,null,{"$f":"IFERROR(VLOOKUP(#REF!,формулы!H3:K36,2,0),0)","v":0}]
[]
[null,"раздел 1",null,null,null,null,null,null,null,null,"раздел 2"]
["Наименование  регионов","Количество договоров страхования (шт.)",null,null,null,null,null,null,null,"Объем поступившей страховой премии (тыс. сум)"]
[null,"действующих на отчетную дату ",null,"в т.ч. в сельской местности",null,"заключенных за отчетный период",null,"в т.ч. в сельской местности",null,"по действовавшим в отчетном периоде договорам страхования",null,"в т.ч. в сельской местности",null,"по заключенным за отчетный период договорам страхования ",null,"в т.ч. в сельской местности"]
[null,"юр. лица","физ. лица","юр. лица","физ. лица","юр. лица","физ. лица","юр.лица","физ.лица","юр. лица","физ. лица","юр.лица","физ.лица","юр. лица","физ. лица","юр.лица","физ.лица"]
[null,1,2,3,4,5,6,7,8,9,10,11,12,13,14,15,16]
["Республика Каракалпакстан",null,null,null,null,null,null,null,null,null,null,null,null,null,null,null,null,null,null,null,null,null,null,null,null,null,{"$f":"ROUND(B27-'добровольные виды'!B38-'доброволные виды жизнь'!B33-'обязательные виды'!B23,1)","v":0}]
["Андижанская обл.",null,null,null,null,null,null,null,null,null,null,null,null,null,null,null,null,null,null,null,null,null,null,null,null,null,{"$f":"ROUND(C27-'добровольные виды'!C38-'доброволные виды жизнь'!C33-'обязательные виды'!C23,1)","v":0}]
["Бухарская обл.",null,null,null,null,null,null,null,null,null,null,null,null,null,null,null,null,null,null,null,null,null,null,null,null,null,{"$f":"ROUND(F27-'добровольные виды'!D38-'доброволные виды жизнь'!D33-'обязательные виды'!D23,1)","v":0}]
["Джизакская обл.",null,null,null,null,null,null,null,null,null,null,null,null,null,null,null,null,null,null,null,null,null,null,null,null,null,{"$f":"ROUND(G27-'добровольные виды'!E38-'доброволные виды жизнь'!E33-'обязательные виды'!E23,1)","v":0}]
["Кашкадарьинская обл.",null,null,null,null,null,null,null,null,null,null,null,null,null,null,null,null,null,null,null,null,null,null,null,null,null,{"$f":"ROUND(J27-'добровольные виды'!F38-'доброволные виды жизнь'!F33-'обязательные виды'!F23,1)","v":0}]
["Навоийская обл.",null,null,null,null,null,null,null,null,null,null,null,null,null,null,null,null,null,null,null,null,null,null,null,null,null,{"$f":"ROUND(K27-'добровольные виды'!G38-'доброволные виды жизнь'!G33-'обязательные виды'!G23,1)","v":0}]
["Наманганская обл.",null,null,null,null,null,null,null,null,null,null,null,null,null,null,null,null,null,null,null,null,null,null,null,null,null,{"$f":"ROUND(N27-'добровольные виды'!H38-'доброволные виды жизнь'!H33-'обязательные виды'!H23,1)","v":0}]
["Самаркандская обл.",null,null,null,null,null,null,null,null,null,null,null,null,null,null,null,null,null,null,null,null,null,null,null,null,null,{"$f":"ROUND(O27-'добровольные виды'!I38-'доброволные виды жизнь'!I33-'обязательные виды'!I23,1)","v":0}]
["Сурхандарьинская обл."]
["Сырдарьинская обл."]
["Ташкентская обл."]
["Ферганская обл."]
["Хорезмская обл."]
["г.Ташкент"]
["Всего:",{"$f":"SUM(B13:B26)","v":0},0,0,0,0,0,0,0,0,0,0,0,0,0,0,0]
[]
[]
[null,"раздел 3",null,null,null,null,null,null,null,"раздел 4","раздел 5","раздел 6",null,"раздел 7"]
["Наименование  регионов","Объем принятых страховых обязательств (тыс. сум)",null,null,null,null,null,null,null,"Количество видов страховых услуг (шт.)","Инвестиции (тыс. сум)","Работники (ед.)",null,"Страховые агенты (ед.)",null,null,null,"Сумма выплаченных агентских вознаграждений (тыс. сум)"]
[null,"по действующим на отчетную дату договорам страхования  ",null,"в т.ч. в сельской местности",null,"по заключенным за отчетный период договорам страхования ",null,"в т.ч. в сельской местности",null,null,null,"всего","в т.ч. в сельской местности","всего                     юр. лица","в т.ч. в сельской местности","всего                     физ. лица","в т.ч. в сельской местности"]
[null,"юр. лица","физ. лица","юр. лица","физ. лица","юр. лица","физ. лица","юр. лица","физ. лица"]
[null,17,18,19,20,21,22,23,24,25,26,27,28,29,30,31,32,33]
["Республика Каракалпакстан",null,null,null,null,null,null,null,null,null,null,null,null,null,null,null,null,null,null,null,null,null,null,null,null,null,{"$f":"ROUND(B49-'добровольные виды'!J38-'доброволные виды жизнь'!J33-'обязательные виды'!J23,1)","v":0}]
["Андижанская обл.",null,null,null,null,null,null,null,null,null,null,null,null,null,null,null,null,null,null,null,null,null,null,null,null,null,{"$f":"ROUND(C49-'добровольные виды'!K38-'доброволные виды жизнь'!K33-'обязательные виды'!K23,1)","v":0}]
["Бухарская обл.",null,null,null,null,null,null,null,null,null,null,null,null,null,null,null,null,null,null,null,null,null,null,null,null,null,{"$f":"ROUND(F49-'добровольные виды'!L38-'доброволные виды жизнь'!L33-'обязательные виды'!L23,1)","v":0}]
["Джизакская обл.",null,null,null,null,null,null,null,null,null,null,null,null,null,null,null,null,null,null,null,null,null,null,null,null,null,{"$f":"ROUND(G49-'добровольные виды'!M38-'доброволные виды жизнь'!M33-'обязательные виды'!M23,1)","v":0}]
["Кашкадарьинская обл.",null,null,null,null,null,null,null,null,null,null,null,null,null,null,null,null,null,null,null,null,null,null,null,null,null,{"$f":"K49-(инвестиции!D25+инвестиции!E25*#REF!+инвестиции!F25*#REF!+инвестиции!G25*#REF!)","v":{"$error":"#REF!"}}]
["Навоийская обл."]
["Наманганская обл."]
["Самаркандская обл."]
["Сурхандарьинская обл."]
["Сырдарьинская обл."]
["Ташкентская обл."]
["Ферганская обл."]
["Хорезмская обл."]
["г.Ташкент"]
["Всего:",{"$f":"SUM(B35:B48)","v":0},{"$f":"SUM(C35:C48)","v":0},0,0,0,0,0,0,{"$f":"MAX(J35:J48)","v":0},0,{"$f":"SUM(L35:L48)","v":0},{"$f":"SUM(M35:M48)","v":0},{"$f":"SUM(N35:N48)","v":0},{"$f":"SUM(O35:O48)","v":0},0,{"$f":"SUM(Q35:Q48)","v":0},0]
[]
["Мы подтверждаем, что сведения, приведенные в настоящей форме, являются достоверными и исчерпывающими. "]
[]
[null,null,null,null,"_______________________"]
["(Ф.И.О. руководителя)",null,null,null,"(подпись)"]
[]
[null,null,"м.п.",null,null,null,null,null,null,"отв. исп.: ",null,null,"тел.:"]
[null,null,null,null,"_______________________"]
["(Ф.И.О. гл. бухгалтера)",null,null,null,"(подпись)"]

{"sheet":"Претензии","index":3,"n_rows":39,"n_cols":27,"rows_kept":39,"cut":false,"hidden":false,"merged":[[11,5,11,6],[8,1,9,6],[37,0,37,1],[38,0,38,1],[38,4,38,5],[32,0,32,1],[33,0,33,1],[33,4,33,5],[10,7,10,10],[0,11,0,14],[1,0,1,14],[2,0,2,14],[5,0,5,14],[3,0,3,14],[8,0,13,0],[11,11,11,12],[8,13,11,14],[11,7,11,8],[11,9,11,10],[8,7,9,12],[10,11,10,12],[10,1,11,2],[10,3,10,6],[11,3,11,4]]}
[null,null,null,null,null,null,null,null,null,null,null,"Приложение №2 к Правилам по заполнению форм страховой отчетности страховщиков",null,null,null,null,null,null,null,null,null,null,null,null,null,null,{"$f":"IF(Претензии!J29='добровольные виды'!N38+'обязательные виды'!N23+'доброволные виды жизнь'!N33,1,0)","v":1}]
["СВЕДЕНИЯ О СТРАХОВЫХ ПРЕТЕНЗИЯХ В РАЗРЕЗЕ РЕГИОНОВ РЕСПУБЛИКИ - ФОРМА №2",null,null,null,null,null,null,null,null,null,null,null,null,null,null,null,null,null,null,null,null,null,null,null,null,null,{"$f":"IF(Претензии!K29='добровольные виды'!O38+'обязательные виды'!O23+'доброволные виды жизнь'!O33,1,0)","v":1}]
[{"$f":"'Сведения по областям'!G3","v":0},null,null,null,null,null,null,null,null,null,null,null,null,null,null,null,null,null,null,null,null,null,null,null,null,null,{"$f":"IF(B15=D15+F15,IF(C15=E15+G15,IF(B15=H15+L15+N15,IF(C15=I15+M15+O15,IF(D15+F15=H15+L15+N15,IF(E15+G15=I15+M15+O15,1,0),0),0),0),0),0)","v":1}]
[{"$f":"'Сведения по областям'!G4","v":"(наименование страховщика)"},null,null,null,null,null,null,null,null,null,null,null,null,null,null,null,null,null,null,null,null,null,null,null,null,null,1]
[null,null,null,null,null,null,null,null,null,null,null,null,null,null,null,null,null,null,null,null,null,null,null,null,null,null,1]
[{"$f":"'Сведения по областям'!H6","v":0},null,null,null,null,null,null,null,null,null,null,null,null,null,null,null,null,null,null,null,null,null,null,null,null,null,1]
[null,null,null,null,null,null,null,null,null,null,null,null,null,null,null,null,null,null,null,null,null,null,null,null,null,null,1]
[null,null,null,null,null,null,null,null,null,null,null,null,null,null,null,null,null,null,null,null,null,null,null,null,null,null,1]
["Наименование регионов","Количество страховых претензий (шт.) ",null,null,null,null,null,"Количество урегулированных страховых претензий ",null,null,null,null,null,"Количество не урегулированных страховых претензий (шт.)",null,null,null,null,null,null,null,null,null,null,null,null,1]
[null,null,null,null,null,null,null,null,null,null,null,null,null,null,null,null,null,null,null,null,null,null,null,null,null,null,1]
[null,"всего",null,"из них",null,null,null,"выплачено",null,null,null,"отказано",null,null,null,null,null,null,null,null,null,null,null,null,null,null,1]
[null,null,null,"поступившие в отчетном периоде",null,"перешедшие из предыдущего отчетного периода",null,"количество (шт.)",null,"сумма (тыс. сум)",null,"количество (шт.)",null,null,null,null,null,null,null,null,null,null,null,null,null,null,1]
[null,"юр. лица","физ. лица","юр. лица","физ. лица","юр. лица","физ. лица","юр. лица","физ. лица","юр. лица","физ. лица","юр. лица","физ. лица","юр. лица","физ. лица",null,null,null,null,null,null,null,null,null,null,null,1]
[null,1,2,3,4,5,6,7,8,9,10,11,12,13,14,null,null,null,null,null,null,null,null,null,null,null,1]
["Республика Каракалпакстан",{"$f":"D15+F15","v":0},{"$f":"E15+G15","v":0},null,null,null,null,null,null,null,null,null,null,null,null,null,null,null,null,null,null,null,null,null,null,null,1]
["Андижанская обл.",{"$f":"D16+F16","v":0},{"$f":"E16+G16","v":0},null,null,null,null,null,null,null,null,null,null,null,null,null,null,null,null,null,null,null,null,null,null,null,1]
["Бухарская обл.",0,0]
["Джизакская обл.",0,0]
["Кашкадарьинская обл.",{"$f":"D19+F19","v":0},0]
["Навоийская обл.",0,0]
["Наманганская обл.",0,0]
["Самаркандская обл.",0,0]
["Сурхандарьинская обл.",0,0]
["Сырдарьинская обл.",0,0]
["Ташкентская обл.",0,0]
["Ферганская обл.",0,0]
["Хорезмская обл.",0,0]
["г.Ташкент",0,0]
["ВСЕГО",{"$f":"B15+B16+B17++B18+B19+B20+B21+B22+B23+B24+B25+B26+B27+B28","v":0},{"$f":"C15+C16+C17++C18+C19+C20+C21+C22+C23+C24+C25+C26+C27+C28","v":0},{"$f":"D15+D16+D17++D18+D19+D20+D21+D22+D23+D24+D25+D26+D27+D28","v":0},0,0,0,0,0,0,0,0,0,0,0]
[]
["Мы подтверждаем, что сведения, приведенные в настоящей форме, являются достоверными и исчерпывающими. "]
[]
[{"$f":"'Сведения по областям'!A53:B53","v":0},null,null,null,"_______________________"]
["(Ф.И.О. руководителя)",null,null,null,"(подпись)"]
[]
[]
[null,null,null,"м.п."]
[{"$f":"'Сведения по областям'!A57:B57","v":0},null,null,null,"_______________________",null,null,null,"отв. исп.: ",null,null,"тел.:"]
["(Ф.И.О. гл. бухгалтера)",null,null,null,"(подпись)"]

{"sheet":"Подразделения","index":4,"n_rows":150,"n_cols":9,"rows_kept":150,"cut":false,"hidden":false,"merged":[[148,0,148,1],[149,0,149,1],[138,0,138,5],[143,0,143,1],[144,0,144,1],[23,0,23,5],[13,1,14,3],[13,0,14,0],[15,0,16,0],[15,1,16,3],[13,4,14,4],[15,4,16,4],[0,4,0,5],[2,0,2,5],[3,0,3,5],[6,0,6,5],[4,0,4,5],[5,0,5,5],[20,6,20,7],[5,6,5,8],[9,0,10,0],[9,1,10,3],[11,1,12,3],[11,0,12,0],[9,4,10,4],[11,4,12,4]]}
[null,null,null,null,"Приложение №3 к Правилам по заполнению форм страховой отчетности страховщиков"]
[]
["СВЕДЕНИЯ О ТЕРРИТОРИАЛЬНЫХ ПОДРАЗДЕЛЕНИЯХ - ФОРМА №3"]
[{"$f":"'Сведения по областям'!G3","v":0}]
[{"$f":"'Сведения по областям'!G4","v":"(наименование страховщика)"}]
[null,null,null,null,null,null,"Количество подразделений"]
[{"$f":"'Сведения по областям'!H6","v":0},null,null,null,null,null,1,"Республика Каракалпакстан"]
[null,null,null,null,null,null,2,"Андижанская область"]
[null,"Раздел 1",null,null,null,null,3,"Бухарская область"]
["1.","Количество территориальных подразделений (ед.)",null,null,null,null,4,"Джизакская область"]
[null,null,null,null,null,null,5,"Кашкадарьинская область"]
["1.1.","в т.ч. в сельской местности (ед.)",null,null,null,null,6,"Навоийская область"]
[null,null,null,null,null,null,7,"Наманганская область"]
["2.","Количество территориальных подразделений открытых в отчетном периоде (ед.)",null,null,null,null,8,"Самаркандская область"]
[null,null,null,null,null,null,9,"Сурхандарьинская область "]
["2.1.","в т.ч. в сельской местности (ед.)",null,null,null,null,10,"Сырдарьинская область"]
[null,null,null,null,null,null,11,"Ташкентская область"]
[null,null,null,null,null,null,12,"Ферганская область"]
[null,"Раздел 2",null,null,null,null,13,"Хорезмская область"]
[null,null,null,null,null,null,14,"г. Ташкент"]
[null,null,null,null,null,null,"Всего:",null,{"$f":"SUM(I7:I20)","v":0}]
["№","Наименование территориального подразделения","Дата \nобразования (месяц, год)","Ф.И.О. \nруководителя*","Местонахождение ","Телефон (служебный, сотовый)"]
[1,2,3,4,5,6]
[]
[]
[]
[]
[]
[]
[]
[]
[]
[]
[]
[]
[]
[]
[]
[]
[]
[]
[]
[]
[]
[]
[]
[]
[]
[]
[]
[]
[]
[]
[]
[]
[]
[]
[]
[]
[]
[]
[]
[]
[]
[]
[]
[]
[]
[]
[]
[]
[]
[]
[]
[]
[]
[]
[]
[]
[]
[]
[]
[]
[]
[]
[]
[]
[]
[]
[]
[]
[]
[]
[]
[]
[]
[]
[]
[]
[]
[]
[]
[]
[]
[]
[]
[]
[]
[]
[]
[]
[]
[]
[]
[]
[]
[]
[]
[]
[]
[]
[]
[]
[]
[]
[]
[]
[]
[]
[]
[]
[]
[]
[]
[]
[]
[]
[]
[]
["Мы подтверждаем, что сведения, приведенные в настоящей форме, являются достоверными и исчерпывающими. "]
[]
[]
[]
[{"$f":"'Сведения по областям'!A53:B53","v":0},null,null,"___________________"]
["(Ф.И.О. руководителя)",null,null,"(подпись)","отв. исп.:   "]
[]
[null,null,null,null,"тел.: "]
[null,null,"м.п."]
[{"$f":"'Сведения по областям'!A57:B57","v":0},null,null,"___________________"]
["(Ф.И.О. гл. бухгалтера)",null,null,"(подпись)"]

{"sheet":"добровольные виды","index":5,"n_rows":51,"n_cols":27,"rows_kept":51,"cut":false,"hidden":false,"merged":[[49,1,49,2],[50,1,50,2],[50,5,50,6],[0,11,0,14],[31,0,31,14],[11,0,11,14],[7,13,8,14],[44,1,44,2],[45,1,45,2],[45,5,45,6],[3,0,3,14],[7,0,10,0],[7,5,7,8],[8,5,8,6],[8,7,8,8],[4,0,4,14],[0,0,0,10],[7,9,7,12],[8,9,8,10],[8,11,8,12],[8,1,8,2],[8,3,8,4],[7,1,7,4],[5,0,5,14],[1,0,1,14],[2,0,2,14]]}
[null,null,null,null,null,null,null,null,null,null,null,"Приложение №4 к Правилам по заполнению форм страховой отчетности страховщиков",null,null,null,null,null,null,null,null,null,null,null,null,null,null,{"$f":"IF(Претензии!J29='добровольные виды'!N38+'обязательные виды'!N23+'доброволные виды жизнь'!N33,1,0)","v":1}]
["СВЕДЕНИЯ О ДЕЯТЕЛЬНОСТИ ПО ДОБРОВОЛЬНЫМ ВИДАМ СТРАХОВАНИЯ - ФОРМА №4",null,null,null,null,null,null,null,null,null,null,null,null,null,null,null,null,null,null,null,null,null,null,null,null,null,{"$f":"IF(Претензии!K29='добровольные виды'!O38+'обязательные виды'!O23+'доброволные виды жизнь'!O33,1,0)","v":1}]
[]
[{"$f":"'Сведения по областям'!G3","v":0}]
[{"$f":"'Сведения по областям'!G4","v":"(наименование страховщика)"}]
[{"$f":"'Сведения по областям'!H6","v":0}]
[]
["КЛАССЫ","Количество договоров страхования (шт.)",null,null,null,"Объем поступившей страховой премии (тыс. сум)",null,null,null,"Объем принятых страховых обязательств (тыс. сум)",null,null,null,"Объем страховых выплат (тыс. сум)"]
[null,"действующих на отчетную дату ",null,"заключенных за отчетный период",null,"по действовавшим в отчетном периоде договорам страхования",null,"по заключенным за отчетный период договорам страхования ",null,"по действующим на отчетную дату договорам страхования  ",null,"по заключенным за отчетный период договорам страхования "]
[null,"юр. лица","физ. лица","юр. лица","физ. лица","юр. лица","физ. лица","юр. лица","физ. лица","юр. лица","физ. лица","юр. лица","физ. лица","юр. лица","физ. лица"]
[null,1,2,3,4,5,6,7,8,9,10,11,12,13,14]
["Договора страхования, предусматривающие страхование по одному классу"]
[1]
[2]
[3]
[4]
[5]
[6]
[7]
[8]
[9]
[10]
[11]
[12]
[13]
[14]
[15]
[16]
[17]
[18]
["ВСЕГО",{"$f":"SUM(B13:B30)","v":0},0,0,0,0,0,0,0,0,0,0,0,0,0]
["Договора страхования, предусматривающие страхование по двум и более  классам"]
[]
[]
[]
[]
["ВСЕГО",{"$f":"SUM(B33:B36)","v":0},0,0,0,0,0,0,0,0,0,0,0,0,0]
["ИТОГО",{"$f":"B31+B37","v":0},0,0,0,0,0,0,0,0,0,0,0,0,0]
[]
[null,"Мы подтверждаем, что сведения, приведенные в настоящей форме, являются достоверными и исчерпывающими. "]
[]
[]
[]
[]
[null,{"$f":"'Сведения по областям'!A53","v":0},null,null,null,"_______________________"]
[null,"(Ф.И.О. руководителя)",null,null,null,"(подпись)",null,null,"отв. исп.: ",null,null,"тел.:"]
[]
[]
[null,null,null,null,"м.п."]
[null,{"$f":"'Сведения по областям'!A57","v":0},null,null,null,"_______________________"]
[null,"(Ф.И.О. гл. бухгалтера)",null,null,null,"(подпись)"]

{"sheet":"доброволные виды жизнь","index":6,"n_rows":42,"n_cols":27,"rows_kept":42,"cut":false,"hidden":false,"merged":[[26,0,26,14],[11,0,11,14],[0,12,0,14],[41,1,41,2],[41,5,41,6],[37,1,37,2],[38,1,38,2],[38,5,38,6],[40,1,40,2],[12,0,12,14],[21,0,21,14],[7,0,10,0],[8,3,8,4],[7,5,7,8],[8,5,8,6],[8,7,8,8],[1,0,1,14],[2,0,2,14],[3,0,3,14],[7,13,8,14],[5,0,5,14],[7,9,7,12],[8,9,8,10],[8,11,8,12],[7,1,7,4],[8,1,8,2],[4,0,4,14]]}
[null,null,null,null,null,null,null,null,null,null,null,null,"Приложение №5 к Правилам по заполнению форм страховой отчетности страховщиков",null,null,null,null,null,null,null,null,null,null,null,null,null,{"$f":"IF(Претензии!J29='добровольные виды'!N38+'обязательные виды'!N23+'доброволные виды жизнь'!N33,1,0)","v":1}]
["СВЕДЕНИЯ О ДЕЯТЕЛЬНОСТИ ПО ДОБРОВОЛЬНЫМ ВИДАМ СТРАХОВАНИЯ - ФОРМА №4-1",null,null,null,null,null,null,null,null,null,null,null,null,null,null,null,null,null,null,null,null,null,null,null,null,null,{"$f":"IF(Претензии!K29='добровольные виды'!O38+'обязательные виды'!O23+'доброволные виды жизнь'!O33,1,0)","v":1}]
[]
[{"$f":"'Сведения по областям'!G3","v":0}]
[{"$f":"'Сведения по областям'!G4","v":"(наименование страховщика)"}]
[{"$f":"'Сведения по областям'!H6","v":0}]
[]
["КЛАССЫ","Количество договоров страхования (шт.)",null,null,null,"Объем поступившей страховой премии (тыс. сум)",null,null,null,"Объем принятых страховых обязательств (тыс. сум)",null,null,null,"Объем страховых выплат (тыс. сум)"]
[null,"действующих на отчетную дату ",null,"заключенных за отчетный период",null,"по действовавшим в отчетном периоде договорам страхования",null,"по заключенным за отчетный период договорам страхования ",null,"по действующим на отчетную дату договорам страхования  ",null,"по заключенным за отчетный период договорам страхования "]
[null,"юр. лица","физ. лица","юр. лица","физ. лица","юр. лица","физ. лица","юр. лица","физ. лица","юр. лица","физ. лица","юр. лица","физ. лица","юр. лица","физ. лица"]
[null,1,2,3,4,5,6,7,8,9,10,11,12,13,14]
["Договора страхования, предусматривающие страхование по одному классу"]
["Отрасль страхования жизни"]
["I"]
["II"]
["III"]
["IV"]
["V"]
["VI"]
["VII"]
["ВСЕГО",{"$f":"SUM(B14:B20)","v":0},0,0,0,0,0,0,0,0,0,0,0,0,0]
["Отрасль общего страхования"]
[1]
[2]
[18]
["ВСЕГО",{"$f":"SUM(B23:B25)","v":0},0,0,0,0,0,0,0,0,0,0,0,0,0]
["Договора страхования, предусматривающие страхование по двум и более  классам"]
[]
[]
[]
[]
["ВСЕГО",{"$f":"SUM(B28:B31)","v":0},{"$f":"SUM(C28:C31)","v":0},0,0,0,0,0,0,0,0,0,0,0,0]
["ИТОГО",{"$f":"B21+B26+B32","v":0},0,0,0,0,0,0,0,0,0,0,0,0,0]
[]
[null,"Мы подтверждаем, что сведения, приведенные в настоящей форме, являются достоверными и исчерпывающими. "]
[]
[]
[null,{"$f":"'Сведения по областям'!A53","v":0},null,null,null,"_______________________"]
[null,"(Ф.И.О. руководителя)",null,null,null,"(подпись)"]
[null,null,null,null,"м.п.",null,null,null,null,"отв. исп.: ",null,null,"тел.:"]
[null,{"$f":"'Сведения по областям'!A57","v":0},null,null,null,"_______________________"]
[null,"(Ф.И.О. гл. бухгалтера)",null,null,null,"(подпись)"]

{"sheet":"добр перестрахование","index":7,"n_rows":46,"n_cols":9,"rows_kept":46,"cut":false,"hidden":false,"merged":[[45,1,45,2],[40,1,40,2],[41,1,41,2],[44,1,44,2],[8,5,8,6],[8,7,8,8],[11,0,11,8],[31,0,31,8],[0,7,0,8],[7,0,10,0],[5,0,5,8],[1,0,1,8],[2,0,2,8],[3,0,3,8],[7,1,7,4],[8,1,8,2],[8,3,8,4],[7,5,7,8],[4,0,4,8]]}
[null,null,null,null,null,null,null,"Приложение №6 к Правилам по заполнению форм страховой отчетности страховщиков"]
["СВЕДЕНИЯ О ПЕРЕСТРАХОВАНИИ ПО ДОБРОВОЛЬНЫМ ВИДАМ СТРАХОВАНИЯ - ФОРМА №5 "]
[]
[{"$f":"'Сведения по областям'!G3","v":0}]
[{"$f":"'Сведения по областям'!G4","v":"(наименование страховщика)"}]
[{"$f":"'Сведения по областям'!H6","v":0}]
[null,null,null,null,null,null,null,null,"(тыс. сум)"]
["КЛАССЫ","Объем страховой премии ",null,null,null,"Объем страховых обязательств "]
[null,"выплачено по исходящему перестрахованию",null,"получено по входящему перестрахованию",null,"передано по исходящему перестрахованию",null,"принято по входящему перестрахованию"]
[null,"страховщикам -резидентам Р.Уз.","иностранным страховым организациям","от страховщиков - резидентов Р.Уз.","от иностранных страховых организаций","страховщикам -резидентам Р.Уз.","иностранным страховым организациям","от страховщиков - резидентов Р.Уз.","от иностранных страховых организаций"]
[null,1,2,3,4,5,6,7,8]
["Договора страхования, предусматривающие страхование по одному классу"]
[1]
[2]
[3]
[4]
[5]
[6]
[7]
[8]
[9]
[10]
[11]
[12]
[13]
[14]
[15]
[16]
[17]
[18]
["ВСЕГО",{"$f":"SUM(B13:B30)","v":0},0,0,0,0,0,0,0]
["Договора страхования, предусматривающие страхование по двум и более  классам"]
[]
[]
[]
["ВСЕГО",{"$f":"SUM(B33:B35)","v":0},0,0,0,0,0,0,0]
["ИТОГО",{"$f":"B31+B36","v":0},0,0,0,0,0,0,0]
[]
[null,"Мы подтверждаем, что сведения, приведенные в настоящей форме, являются достоверными и исчерпывающими. "]
[]
[null,{"$f":"'Сведения по областям'!A53","v":0},null,null,"_______________________"]
[null,"(Ф.И.О. руководителя)",null,null,"(подпись)",null,"отв. исп.: "]
[]
[null,null,null,null,null,null,"тел.:"]
[null,{"$f":"'Сведения по областям'!A57","v":0},null,"м.п.","_______________________"]
[null,"(Ф.И.О. гл. бухгалтера)",null,null,"(подпись)"]

{"sheet":"добр жизнь перес","index":8,"n_rows":40,"n_cols":9,"rows_kept":40,"cut":false,"hidden":false,"merged":[[39,5,39,6],[38,1,38,2],[39,1,39,2],[38,5,38,6],[21,0,21,8],[26,0,26,8],[35,1,35,2],[36,1,36,2],[36,5,36,6],[35,5,35,6],[11,0,11,8],[12,0,12,8],[0,7,0,8],[7,0,10,0],[7,1,7,4],[8,1,8,2],[8,3,8,4],[7,5,7,8],[8,5,8,6],[8,7,8,8],[5,0,5,8],[1,0,1,8],[2,0,2,8],[3,0,3,8],[4,0,4,8]]}
[null,null,null,null,null,null,null,"Приложение №7 к Правилам по заполнению форм страховой отчетности страховщиков"]
["СВЕДЕНИЯ О ПЕРЕСТРАХОВАНИИ ПО ДОБРОВОЛЬНЫМ ВИДАМ СТРАХОВАНИЯ - ФОРМА №5-1 "]
[]
[{"$f":"'Сведения по областям'!G3","v":0}]
[{"$f":"'Сведения по областям'!G4","v":"(наименование страховщика)"}]
[{"$f":"'Сведения по областям'!H6","v":0}]
[null,null,null,null,null,null,null,null,"(тыс. сум)"]
["КЛАССЫ","Объем страховой премии ",null,null,null,"Объем страховых обязательств "]
[null,"выплачено по исходящему перестрахованию",null,"получено по входящему перестрахованию",null,"передано по исходящему перестрахованию",null,"принято по входящему перестрахованию"]
[null,"страховщикам -резидентам Р.Уз.","иностранным страховым организациям","от страховщиков - резидентов Р.Уз.","от иностранных страховых организаций","страховщикам -резидентам Р.Уз.","иностранным страховым организациям","от страховщиков - резидентов Р.Уз.","от иностранных страховых организаций"]
[null,1,2,3,4,5,6,7,8]
["Договора страхования, предусматривающие страхование по одному классу"]
["Отрасль страхования жизни"]
["I"]
["II"]
["III"]
["IV"]
["V"]
["VI"]
["VII"]
["ВСЕГО",{"$f":"SUM(B14:B20)","v":0},0,0,0,0,0,0,0]
["Отрасль общего страхования"]
[1]
[2]
[18]
["ВСЕГО",{"$f":"SUM(B23:B25)","v":0},0,0,0,0,0,0,0]
["Договора страхования, предусматривающие страхование по двум и более  классам"]
[]
[]
[]
["ВСЕГО",{"$f":"SUM(B28:B30)","v":0},{"$f":"SUM(C28:C30)","v":0},0,0,0,0,0,0]
["ИТОГО",{"$f":"B21+B26+B31","v":0},0,0,0,0,0,0,0]
[]
[null,"Мы подтверждаем, что сведения, приведенные в настоящей форме, являются достоверными и исчерпывающими. "]
[]
[null,{"$f":"'Сведения по областям'!A53","v":0},null,null,null,"_______________________"]
[null,"(Ф.И.О. руководителя)",null,null,null,"(подпись)",null,"отв. исп.:"]
[]
[null,{"$f":"'Сведения по областям'!A57","v":0},null,null,null,"_______________________",null,"тел.: "]
[null,"(Ф.И.О. гл. бухгалтера)",null,null,null,"(подпись)"]

{"sheet":"обязательные виды","index":9,"n_rows":65,"n_cols":27,"rows_kept":65,"cut":false,"hidden":false,"merged":[[7,0,10,0],[7,9,7,12],[8,11,8,12],[7,13,8,14],[7,5,7,8],[8,5,8,6],[8,7,8,8],[7,1,7,4],[8,1,8,2],[8,3,8,4],[0,12,0,14],[5,0,5,14],[1,0,1,14],[2,0,2,14],[3,0,3,14],[4,0,4,14],[26,1,26,10],[29,5,29,6],[8,9,8,10],[33,5,33,6],[28,1,28,2],[32,1,32,2]]}
[null,null,null,null,null,null,null,null,null,null,null,null,"Приложение №8 к Правилам по заполнению форм страховой отчетности страховщиков",null,null,null,null,null,null,null,null,null,null,null,null,null,{"$f":"IF(Претензии!J29='добровольные виды'!N38+'обязательные виды'!N23+'доброволные виды жизнь'!N33,1,0)","v":1}]
["СВЕДЕНИЯ О ДЕЯТЕЛЬНОСТИ ПО ОБЯЗАТЕЛЬНЫМ ВИДАМ СТРАХОВАНИЯ - ФОРМА №6",null,null,null,null,null,null,null,null,null,null,null,null,null,null,null,null,null,null,null,null,null,null,null,null,null,{"$f":"IF(Претензии!K29='добровольные виды'!O38+'обязательные виды'!O23+'доброволные виды жизнь'!O33,1,0)","v":1}]
[]
[{"$f":"'Сведения по областям'!G3","v":0}]
[{"$f":"'Сведения по областям'!G4","v":"(наименование страховщика)"}]
[{"$f":"'Сведения по областям'!H6","v":0}]
[]
["Виды обязательного страхования*","Количество договоров страхования (шт.)",null,null,null,"Объем поступившей страховой премии (тыс. сум)",null,null,null,"Объем принятых страховых обязательств (тыс. сум)",null,null,null,"Объем страховых выплат (тыс. сум)"]
[null,"действующих на отчетную дату ",null,"заключенных за отчетный период",null,"по действовавшим в отчетном периоде договорам страхования",null,"по заключенным за отчетный период договорам страхования ",null,"по действующим на отчетную дату договорам страхования  ",null,"по заключенным за отчетный период договорам страхования "]
[null,"юр. лица","физ. лица","юр. лица","физ. лица","юр. лица","физ. лица","юр. лица","физ. лица","юр. лица","физ. лица","юр. лица","физ. лица","юр. лица","физ. лица"]
[null,1,2,3,4,5,6,7,8,9,10,11,12,13,14]
[]
[]
[]
[]
[]
[]
[]
[]
[]
[]
[]
["Всего",{"$f":"SUM(B12:B22)","v":0},{"$f":"SUM(C12:C22)","v":0},0,0,0,0,0,0,0,0,0,0,{"$f":"SUM(N12:N22)","v":0},0]
[]
[null,"Мы подтверждаем, что сведения, приведенные в настоящей форме, являются достоверными и исчерпывающими. "]
[]
[]
[]
[null,{"$f":"'Сведения по областям'!A53","v":0},null,null,null,"_______________________"]
[null,"(Ф.И.О. руководителя)",null,null,null,"(подпись)",null,null,null,"отв. исп.: ",null,null,"тел.:"]
[]
[null,null,null,null,"м.п."]
[null,{"$f":"'Сведения по областям'!A57","v":0},null,null,null,"_______________________"]
[null,"(Ф.И.О. гл. бухгалтера)",null,null,null,"(подпись)"]
[]
[]
[]
[]
[]
[]
[]
[]
[]
[]
[]
[]
[]
[]
[]
[]
["*Примечание:"]
["ОСГО","Обязательное страхование гражданской ответственности владельцев транспортных средств"]
["ОСГОР","Обязательное страхование гражданской ответственности работодателя"]
["ОСГОП","Обязательное страхование гражданской ответственности перевозчика"]
["ОСГОР аннуитет","Обязательное страхование гражданской ответственности работодателя (договор аннуитетов)"]
["ОС СМР","Обязательное страхование строительно-монтажных работ"]
["ОСПОН","Обязательное страхование профессиональной ответственности нотариусов"]
["ОСПОА","Обязательное страхование профессиональной ответственности аудиторов"]
["ОСПОТБ","Обязательное страхование профессиональной ответственности таможенных брокеров"]
["ОСП от НС","Обязательное страхование пассажиров от несчастных случаев"]
["ОГСВиН","Обязательное страхование военных и налоговиков"]
["ОСГО ОПО","Обязательное страхование гражданской ответственности при эксплуатации опасных производственных объектов"]
["ОГС ЖЗСЭ","Обязательное государственное страхование жизни и здоровья государственных судебных экспертов"]
["ОСЖЗСССиСФ","Обязательное страхование жизни и здоровья спасателей спасательных служб и спасательных формирований"]
["ОСГОТ","Обязательное страхование гражданской ответственности туроператоров"]

{"sheet":"обяз перес","index":10,"n_rows":32,"n_cols":9,"rows_kept":32,"cut":false,"hidden":false,"merged":[[0,7,0,8],[7,0,10,0],[5,0,5,8],[1,0,1,8],[2,0,2,8],[3,0,3,8],[7,1,7,4],[8,1,8,2],[8,3,8,4],[7,5,7,8],[8,5,8,6],[8,7,8,8],[4,0,4,8]]}
[null,null,null,null,null,null,null,"Приложение №9 к Правилам по заполнению форм страховой отчетности страховщиков"]
["СВЕДЕНИЯ О ПЕРЕСТРАХОВАНИИ ПО ОБЯЗАТЕЛЬНЫМ ВИДАМ СТРАХОВАНИЯ - ФОРМА №7 "]
[]
[{"$f":"'Сведения по областям'!G3","v":0}]
[{"$f":"'Сведения по областям'!G4","v":"(наименование страховщика)"}]
[{"$f":"'Сведения по областям'!H6","v":0}]
[null,null,null,null,null,null,null,null,"(тыс. сум)"]
["Виды обязательного страхования","Объем перестраховочной премии ",null,null,null,"Объем страховых обязательств "]
[null,"выплачено по исходящему перестрахованию",null,"получено по входящему перестрахованию",null,"передано по исходящему перестрахованию",null,"принято по входящему перестрахованию"]
[null,"страховщикам -резидентам Р.Уз.","иностранным страховым организациям","от страховщиков - резидентов Р.Уз.","от иностранных страховых организаций","страховщикам -резидентам Р.Уз.","иностранным страховым организациям","от страховщиков - резидентов Р.Уз.","от иностранных страховых организаций"]
[null,1,2,3,4,5,6,7,8]
[]
[]
[]
[]
[]
[]
[]
[]
[]
[]
[]
["Всего",{"$f":"SUM(B12:B22)","v":0},{"$f":"SUM(C12:C22)","v":0},0,0,0,0,0,0]
[]
[null,"Мы подтверждаем, что сведения, приведенные в настоящей форме, являются достоверными и исчерпывающими. "]
[]
[null,{"$f":"'Сведения по областям'!A53","v":0},null,"_______________________"]
[null,"(Ф.И.О. руководителя)",null,"(подпись)"]
[null,null,null,null,null,"отв. исп.: "]
[null,null,"м.п."]
[null,{"$f":"'Сведения по областям'!A57","v":0},null,"_______________________",null,"тел.: "]
[null,"(Ф.И.О. гл. бухгалтера)",null,"(подпись)"]

{"sheet":"инвестиции","index":11,"n_rows":35,"n_cols":27,"rows_kept":35,"cut":false,"hidden":false,"merged":[[0,11,0,13],[7,11,7,13],[1,0,1,13],[2,0,2,13],[7,7,7,10],[3,0,3,13],[5,0,5,13],[7,3,7,6],[7,1,9,2],[4,1,4,13],[33,0,33,2],[34,0,34,2],[29,0,29,2],[28,0,28,2],[10,1,12,1],[26,0,26,13],[13,1,16,1],[17,1,20,1],[21,1,21,2],[23,1,23,2],[24,1,24,2],[22,1,22,2]]}
[null,null,null,null,null,null,null,null,null,null,null,"Приложение №10 к Правилам по заполнению форм страховой отчетности страховщиков"]
["СВЕДЕНИЯ ОБ ИНВЕСТИЦИОННОЙ ДЕЯТЕЛЬНОСТИ - ФОРМА № 8"]
[]
[{"$f":"'Сведения по областям'!G3","v":0}]
[null,{"$f":"'Сведения по областям'!G4","v":"(наименование страховщика)"}]
[{"$f":"'Сведения по областям'!H6","v":0}]
[]
[null,"Объекты инвестиционных вложений",null,"ВСЕГО",null,null,null,"В пределах Республике Узбекистан",null,null,null,"За пределами Республики Узбекистан"]
[null,null,null,"в тыс. сум","в тыс. долл. США","в тыс. Евро","в тыс.росс.руб","в тыс. сум","в тыс. долл. США","в тыс. Евро","в тыс.росс.руб","в тыс. долл. США","в тыс. Евро","в тыс.росс.руб"]
[null,null,null,1,2,3,4,5,6,7,8,9,10,11]
[null,"Депозиты (вклады)","ВСЕГО",{"$f":"SUM(D12:D13)","v":0},{"$f":"SUM(E12:E13)","v":0},0,0,0,0,0,0,0,0,0]
[null,null,"в коммерческих банках",{"$f":"H12","v":0},{"$f":"I12+L12","v":0},0,0]
[null,null,"в иных кредитных организациях",{"$f":"H13","v":0},0,0,0]
[null,"Ценные бумаги","ВСЕГО",{"$f":"SUM(D15:D17)","v":0},{"$f":"SUM(E15:E17)","v":0},0,0,0,0,0,0,0,0,0]
[null,null,"ГКО",{"$f":"H15","v":0},{"$f":"I15+L15","v":0},0,0,0]
[null,null,"акции",{"$f":"H16","v":0},0,0,0]
[null,null,"прочие ценные бумаги",{"$f":"H17","v":0},0,0,0,0]
[null,"Займы","ВСЕГО",{"$f":"SUM(D19:D21)","v":0},{"$f":"SUM(E19:E21)","v":0},0,0,{"$f":"SUM(H19:H21)","v":0},{"$f":"SUM(I19:I21)","v":0},0,0,0,0,0]
[null,null,"учредителям / акционерам, работникам",{"$f":"H19","v":0},{"$f":"I19+L19","v":0},{"$f":"J19+M19","v":0},{"$f":"K19+N19","v":0}]
[null,null,"гарантированные договорами страхования жизни",0,0,0,0,0]
[null,null,"прочие",0,{"$f":"I21+L21","v":0},0,0,0]
[null,"Недвижимость",null,{"$f":"H22","v":0},{"$f":"I22+L22","v":0},{"$f":"J22+M22","v":0},{"$f":"K22+N22","v":0}]
[null,"Участие в уставном фонде предприятий (кроме акций)",null,0,0,0,0]
[null,"Прочие",null,0,0,0,0]
[null,"ИТОГО",null,{"$f":"D11+D14+D18+D22+D23+D24","v":0},{"$f":"E11+E14+E18+E22+E23+E24","v":0},0,0,0,0,0,0,0,0,0,null,null,null,null,null,null,null,null,null,null,null,null,{"$f":"'Сведения по областям'!K49-(инвестиции!D25+инвестиции!E25*#REF!+инвестиции!F25*#REF!+инвестиции!G25*#REF!)","v":{"$error":"#REF!"}}]
[]
["Мы подтверждаем, что сведения, приведенные в настоящей форме, являются достоверными и исчерпывающими. "]
[]
[{"$f":"'Сведения по областям'!A53","v":0},null,null,null,null,null,"_______________________"]
["(Ф.И.О. руководителя)",null,null,null,null,null,"(подпись)"]
[null,null,null,null,null,null,null,null,null,"отв. исп.: ",null,null,"тел.:"]
[]
[null,null,null,null,"м.п."]
[{"$f":"'Сведения по областям'!A57","v":0},null,null,null,null,null,"_______________________"]
["(Ф.И.О. гл. бухгалтера)",null,null,null,null,null,"(подпись)"]

{"sheet":"учредители","index":12,"n_rows":45,"n_cols":8,"rows_kept":45,"cut":false,"hidden":false,"merged":[[32,1,32,2],[31,1,31,2],[23,1,23,2],[24,1,24,2],[25,1,25,2],[26,1,26,2],[27,1,27,2],[43,1,43,2],[44,1,44,2],[15,7,16,7],[15,3,16,3],[39,1,39,2],[38,1,38,2],[33,1,33,2],[17,1,17,2],[18,1,18,2],[20,1,20,2],[29,1,29,2],[30,1,30,2],[19,1,19,2],[21,1,21,2],[22,1,22,2],[28,1,28,2],[2,0,2,7],[5,0,5,7],[4,0,4,7],[6,0,6,7],[0,5,0,7],[15,0,16,0],[15,1,16,2],[3,0,3,6],[9,0,9,1],[10,0,10,1],[11,0,11,1],[12,0,12,1],[15,4,15,6]]}
[null,null,null,null,null,"Приложение №11 к Правилам по заполнению форм страховой отчетности страховщиков"]
[]
["СВЕДЕНИЯ ОБ УЧРЕДИТЕЛЯХ (АКЦИОНЕРАХ) И РАЗМЕРЕ УСТАВНОГО КАПИТАЛА - ФОРМА № 9"]
[]
[{"$f":"'Сведения по областям'!G3","v":0}]
[{"$f":"'Сведения по областям'!G4","v":"(наименование страховщика)"}]
[{"$f":"'Сведения по областям'!H6","v":0}]
[]
[null,"Раздел 1"]
["Уставный капитал",null,"тыс. сум","тыс. долл. США","тыс. евро","другие валюты","всего эквивалент в тыс. долл. США","всего эквивалент в тыс. евро"]
[1,null,2,3,4,5,6,7]
["Объявленный"]
["Сформированный (оплаченный)"]
[]
[null,"Раздел 2"]
["№","Учредитель (акционер)",null,"Страна (регистрации, гражданства)","Фактически оплаченная (внесенная)",null,null,"Доля (%)"]
[null,null,null,null,"сумма","валюта","экв. в тыс. евро"]
[1,2,null,3,4,5,6,7]
[1]
[2]
[3]
[4]
[5]
[6]
[7]
[8]
[9]
[10]
[11]
[12]
[13]
[14]
[15]
[null,"ВСЕГО",null,null,{"$f":"SUM(E19:E33)","v":0},null,null,{"$f":"SUM(H19:H33)","v":0}]
[]
[]
[]
[]
[null,{"$f":"'Сведения по областям'!A53","v":0},null,null,"_______________________"]
[null,"(Ф.И.О. руководителя)",null,null,"(подпись)"]
[null,null,null,null,null,null,"отв. исп.:"]
[]
[null,null,null,"м.п.",null,null,"тел.: "]
[null,{"$f":"'Сведения по областям'!A57","v":0},null,null,"_______________________"]
[null,"(Ф.И.О. гл. бухгалтера)",null,null,"(подпись)"]